Cogmind - Beta 16.1 @@@ ROGUE MODE // 2026.03.15 @ 17:55:59 Player: chebyrekser Result: Destroyed by Enhanced Hunter with Hypervelocity Linear Accelerator Performance ------------- Evolutions (9) 4500 Regions Visited (33) 6600 Robots Destroyed (474) 2370 Value Destroyed (18280) 18280 Prototype IDs (399) 7980 Alien Tech Used (2) 400 Bonus (35607) 35607 TOTAL SCORE: 75737 Bonus ------- High Alert Combat Kills 1308 Follower Combat Kills 1877 Hunted by Unchained 500 Awakened Behemoth Slayer 1000 Network Hubs Disabled 800 Aligned with FarCom 300 Met Imprinter 300 Met Zhirov 300 Met Warlord at Base 500 MAIN.C Attacked Warlord 500 Warlord Defense Kills 770 Built Enhanced Grunts 300 A7 Reached Mainframe 300 Met R17 at Cetus 500 Met R17 at Research 2000 Met Warlord at Research 2000 Invited to Help at Command 2000 Destroyed MAIN.C Guards 500 Met MAIN.C 5000 Hacked MAIN.C 300 Destroyed MAIN.C Shell 5000 Destroyed MAIN.C 10000 Met Architect 300 Friendly Fire -748 Cogmind --------- Core Integrity 0/1600 Matter 201/300 Energy 30/100 System Corruption 6% Temperature Cool (0) Movement Core (350) Ox6 Location -1/Access_0 Parts ------- > --- POWER (3) -------- (None) > --- PROPULSION (8) --- Combat Antigrav System Combat Linear Gravjet > --- UTILITY (11) ----- Large Storage Unit > --- WEAPON (3) ------- (None) > --- INVENTORY (15) --- Improved Quantum Reactor Experimental Coolant Injector Experimental ECM Suite Advanced Phase Shifter Experimental Thermal Shield Gamma Rifle Peak State ------------ > --- POWER ------------ Assembled Flux Generator Improved Quantum Reactor > --- PROPULSION ------- Improved Thunder Leg Enhanced Biometal Leg Enhanced Biometal Leg Centrium Leg Centrium Leg Centrium Leg Centrium Leg Centrium Leg > --- UTILITY ---------- Huge Storage Unit Assembled Biocell Array Experimental Targeting Computer Experimental Core Analyzer Improved Weapon Cycler Improved Transmission Jammer Centrium Medium Armor Plating Centrium Medium Armor Plating Experimental EM Shield Advanced Hacking Suite System Mapper > --- WEAPON ----------- Assembled Focal Cannon Assembled Focal Cannon Assembled Focal Cannon > --- INVENTORY -------- Vortex Chain Reactor Experimental Coolant Injector Zionite Biocell Compact Matter Pod Quantum Capacitor Improved Utility Shielding Improved Weapon Shielding Improved Force Field Army-in-a-Box Transdimensional Reconstructor Vortex Shotgun Vortex Shotgun EMDS Helical Railgun Heavy Missile Launcher RU-N14's Throwing Claymores v3 CR-A16's Behemoth Slayer [Rating: 226] Favorites ----------- Power Cooled Ion Engine Engine Cooled Ion Engine Power Core Neutrino Core Reactor Reinforced Quantum Reactor Propulsion Centrium Leg Treads Improved Treads Leg Centrium Leg Wheel Compact Wheel Hover Unit Combat Linear Gravjet Flight Unit Improved Flight Unit Utility Huge Storage Unit Device Improved System Restoration Module Storage Huge Storage Unit Processor Experimental Targeting Computer Hackware Hacking Suite Protection Hardened Medium Armor Plating Weapon Enhanced Autogun Energy Gun Heavy EM Shotgun Energy Cannon Assembled Focal Cannon Ballistic Gun Enhanced Autogun Ballistic Cannon Linear Accelerator Launcher Rocket Launcher Special Weapon Mining Laser Impact Weapon Flail Slashing Weapon Dual-blade Saw Piercing Weapon CR-A16's Behemoth Slayer Build | -11 -10 -10 -9 -9 -9 -8 -8 -7 -7 -7 -7 -7 -6 -6 -6 -6 -6 -6 -5 -5 -5 -5 -4 -4 -4 -4 -4 -3 -3 -2 -1 -1 -1 ------- Run | Yrd Mat Min Mat Min Exi Min Mat Fac Low Low Zio Dee Pro Fac Ext Cet Arc Hub Fac Upp Upp Zhi Pro Fac Upp Upp War Pro Res Res Acc Com Ac0 Slots Evolved 18 | . . . 2 . . . 2 2 . . . . . 2 . . . . 2 . . . . 2 . . . . 2 2 2 . . Power 2 | . . . . . . . . . . . . . . 1 . . . . . . . . . . . . . . . 1 . . . Propulsion 6 | . . . 1 . . . . . . . . . . . . . . . 1 . . . . . . . . . 2 1 1 . . Utility 9 | . . . 1 . . . 1 2 . . . . . 1 . . . . 1 . . . . 2 . . . . . . 1 . . Weapon 1 | . . . . . . . 1 . . . . . . . . . . . . . . . . . . . . . . . . . . Parts Attached 361 | 8 16 1 24 . 2 1 24 8 7 . 13 17 . 3 11 6 13 23 7 3 . 1 2 7 4 . 10 2 14 25 3 103 3 Power 37 | 1 2 . 4 . . . 2 . . . . . . 1 2 2 1 4 . . . . . . . . . . . 5 . 13 . Engine 13 | 1 2 . 4 . . . 2 . . . . . . 1 1 1 . . . . . . . . . . . . . . . 1 . Core 2 | . . . . . . . . . . . . . . . 1 . 1 . . . . . . . . . . . . . . . . Reactor 22 | . . . . . . . . . . . . . . . . 1 . 4 . . . . . . . . . . . 5 . 12 . Propulsion 81 | 2 5 . 11 . . . 5 . 2 . 2 4 . . 1 3 2 6 . 1 . . . 2 . . 1 . 4 9 1 19 1 Treads 35 | . 5 . 10 . . . 5 . 2 . 1 3 . . 1 3 2 1 . . . . . . . . . . . . . 2 . Leg 25 | . . . . . . . . . . . 1 1 . . . . . 1 . 1 . . . 2 . . 1 . 4 9 1 4 . Wheel 6 | 2 . . . . . . . . . . . . . . . . . 4 . . . . . . . . . . . . . . . Hover 14 | . . . . . . . . . . . . . . . . . . . . . . . . . . . . . . . . 13 1 Flight 1 | . . . 1 . . . . . . . . . . . . . . . . . . . . . . . . . . . . . . Utility 164 | 2 7 . 1 . 2 . 9 6 3 . 8 8 . 2 7 1 7 10 5 2 . . 2 3 4 . 6 2 10 11 1 44 1 Device 64 | 1 4 . . . . . 1 . 3 . 3 1 . . 2 . 4 4 2 1 . . 1 . 3 . 3 2 6 4 . 18 1 Storage 16 | 1 1 . . . 1 . 1 . . . 1 1 . . . . . 1 1 . . . . . . . . . . 2 . 6 . Processor 29 | . . . . . . . . 4 . . 1 . . 1 1 . . 1 1 . . . 1 1 1 . 1 . 2 2 . 12 . Hackware 9 | . . . . . . . 1 1 . . . 1 . 1 . . 3 . . . . . . 1 . . . . . . 1 . . Protection 46 | . 2 . 1 . 1 . 6 1 . . 3 5 . . 4 1 . 4 1 1 . . . 1 . . 2 . 2 3 . 8 . Artifact . | . . . . . . . . . . . . . . . . . . . . . . . . . . . . . . . . . . Weapon 79 | 3 2 1 8 . . 1 8 2 2 . 3 5 . . 1 . 3 3 2 . . 1 . 2 . . 3 . . . 1 27 1 Energy Gun 21 | 1 1 . 3 . . . 1 . . . 2 5 . . . . . . . . . . . . . . 1 . . . . 7 . Energy Cannon 9 | . . . . . . . 2 1 . . 1 . . . . . . . 1 . . . . . . . 1 . . . . 2 1 Ballistic Gun 27 | 2 . . 3 . . 1 5 . . . . . . . 1 . 3 3 1 . . . . . . . . . . . 1 7 . Ballistic Cannon 6 | . . . . . . . . . . . . . . . . . . . . . . . . 1 . . . . . . . 5 . Launcher 7 | . . 1 . . . . . 1 2 . . . . . . . . . . . . . . 1 . . . . . . . 2 . Special Weapon 4 | . 1 . 1 . . . . . . . . . . . . . . . . . . . . . . . 1 . . . . 1 . Impact Weapon 1 | . . . 1 . . . . . . . . . . . . . . . . . . . . . . . . . . . . . . Slashing Weapon 2 | . . . . . . . . . . . . . . . . . . . . . . . . . . . . . . . . 2 . Piercing Weapon 2 | . . . . . . . . . . . . . . . . . . . . . . 1 . . . . . . . . . 1 . Special Melee Weapon . | . . . . . . . . . . . . . . . . . . . . . . . . . . . . . . . . . . Unidentified Prototypes 31 | . . . 3 . . . 1 . 1 . . 6 . . . 2 1 4 1 . . 1 . . . . 6 . . 3 1 1 . Corrupted Parts 9 | . . . . . . . . . . . . . . . . . 5 . . . . . . . . . . . . . . 3 1 System Corruption 35 | . . . . . . . . . . . . . . . . . 16 . . . . . . . . . . . . . . 14 5 Parts Lost 56 | . . . 2 1 . . 1 . . . . 5 . . 4 . . 8 1 1 . . . 1 . . . 1 . . . 11 20 Power 4 | . . . 1 . . . . . . . . . . . 1 . . 1 . . . . . . . . . . . . . 1 . Propulsion 14 | . . . . 1 . . . . . . . . . . . . . 2 . . . . . . . . . . . . . 3 8 Utility 32 | . . . 1 . . . 1 . . . . 5 . . 3 . . 3 1 1 . . . 1 . . . 1 . . . 5 10 Weapon 6 | . . . . . . . . . . . . . . . . . . 2 . . . . . . . . . . . . . 2 2 Highest Loss Streak 20 | . . . 1 1 . . 1 . . . . 3 . . 2 . . 3 1 1 . . . 1 . . . 1 . . . 8 20 To Critical Strikes 1 | . . . . . . . . . . . . . . . . . . . . . . . . . . . . . . . . . 1 Average Backups 14 | 5 14 15 14 14 15 15 18 19 19 19 14 19 19 18 18 17 17 15 18 18 17 17 18 17 18 19 18 17 17 17 17 9 11 Power 1 | . 1 1 . 1 1 1 1 2 2 2 1 1 2 2 1 . . 1 1 1 2 2 2 2 2 2 1 1 1 1 1 . 1 Propulsion 2 | 3 6 5 4 3 3 3 3 4 4 4 2 3 2 2 2 3 2 3 5 4 4 3 3 2 2 2 2 2 . 1 1 1 1 Utility 5 | . 3 4 2 2 3 3 3 5 6 6 4 8 8 7 6 6 6 6 6 6 6 7 7 6 8 9 8 8 6 6 7 3 6 Weapon 5 | 1 3 5 6 8 8 8 8 8 7 7 5 5 7 7 7 7 8 5 5 4 5 4 5 5 5 5 5 5 8 7 6 2 1 Tool/Special . | . . . . . . . . . . . . . . . . . . . . . . . . . . . . . . . . . . Unused Backups 124 | . 10 . 2 . 1 . 7 . 3 . 2 3 . 3 . 2 2 2 1 . . 1 . 1 . . 4 . 5 1 1 72 1 Power 9 | . . . . . . . 1 . . . . . . 1 . 1 . . . . . . . . . . 1 . . . . 5 . Propulsion 35 | . 7 . . . . . . . . . 1 1 . . . . 1 2 . . . 1 . 1 . . 1 . . . . 20 . Utility 41 | . 1 . . . 1 . 1 . 1 . . 1 . 2 . . 1 . . . . . . . . . 1 . 2 . 1 28 1 Weapon 39 | . 2 . 2 . . . 5 . 2 . 1 1 . . . 1 . . 1 . . . . . . . 1 . 3 1 . 19 . Tool/Special . | . . . . . . . . . . . . . . . . . . . . . . . . . . . . . . . . . . Average Slot Usage (%) 86 | . 99 100 98 99 100 100 98 98 100 100 84 97 100 98 98 98 90 94 84 84 88 77 87 88 88 89 87 88 94 94 95 71 69 Engine 4 | . 14 14 10 11 11 11 8 7 7 7 7 7 7 12 11 4 . . . . . . . . . . . . . . . 1 . Reactor 3 | . . . . . . . . . . . . . . . . 1 5 8 11 6 5 5 5 5 5 5 5 5 4 7 8 6 6 Treads 12 | . 26 28 32 32 33 33 27 23 23 23 23 23 23 20 20 18 13 5 10 5 . . . . . . . . . . . 1 . Leg 10 | . . . . . . . . . . . . . . . . . . . . 11 23 23 23 21 20 21 21 21 27 29 32 22 . Hover 2 | . . . . . . . . . . . . . . . . . . . . . . . . . . . . . . . . 7 28 Device 10 | . 12 14 13 11 11 11 5 . 6 7 10 15 15 12 10 6 9 9 10 11 11 11 10 11 8 10 7 10 13 12 11 11 15 Storage 6 | . 14 14 11 11 11 11 9 7 7 7 4 7 7 6 6 6 6 6 5 9 11 11 11 10 10 10 10 9 9 8 8 4 4 Processor 6 | . . . . . . . . 6 15 15 5 . . 2 6 6 5 3 7 11 11 11 15 15 18 15 15 14 11 8 8 7 3 Hackware 2 | . . . . . . . 7 14 7 7 1 . . 5 6 6 10 16 5 1 . . . 4 5 5 5 5 4 4 7 . . Protection 7 | . . . 8 11 11 11 12 14 7 7 8 19 23 16 14 20 10 8 13 5 4 5 . 3 3 5 7 5 6 7 8 2 9 Energy Gun 3 | . 9 14 11 11 11 11 8 . . . 1 6 . 1 1 20 17 7 2 . . . . . . . . . . . . 1 2 Energy Cannon 3 | . . . . . . . 2 . . 1 4 1 . . . . . . 1 12 17 5 17 14 14 15 14 14 14 13 10 . 1 Ballistic Gun 7 | . 16 13 6 10 2 11 13 22 21 21 14 13 23 17 17 . 1 11 9 3 . . . . . . . . . . 1 1 . Peak Build Rating 226 | 7 10 12 23 23 27 28 39 46 52 51 79 63 63 74 73 101 106 117 134 146 146 146 151 165 159 161 163 163 183 208 226 225 181 Average Rating 105 | 6 8 10 17 20 19 27 31 44 46 50 59 55 63 71 70 82 100 102 122 137 144 128 146 162 155 158 158 160 177 194 222 165 150 On Entrance 93 | . 7 10 10 23 18 27 28 39 46 51 50 53 63 63 73 71 101 104 87 120 144 118 146 147 162 158 140 163 163 176 208 220 177 Avg Prop Armor Cover (%) 6 | . . . . . . . . . . . . . . . . . . 2 . . . . . . . . . . . . 2 6 4 Naked Turns . | . . . . . . . . . . . . . . . . . . . . . . . . . . . . . . . . . . Heaviest Build 278 | 15 36 31 42 42 62 63 113 113 113 111 126 129 119 133 137 148 148 148 157 175 175 174 174 176 177 177 192 192 206 209 211 278 118 Greatest Support 240 | 20 40 40 69 69 66 66 66 63 68 68 68 65 63 63 63 110 110 110 160 160 120 120 120 120 108 108 115 115 171 210 238 240 122 Greatest Overweight (x) 14 | . . . . . . . 1 1 1 1 2 2 1 2 2 2 1 14 . 2 1 1 1 1 2 1 1 2 1 1 . 3 1 Average Overweight (x) . | . . . . . . . . 1 1 1 . 1 1 1 1 1 1 2 . . 1 1 1 1 1 1 1 1 1 . . . . Largest Inventory Capacity 25 | 8 15 15 15 15 20 20 25 25 25 25 25 25 25 25 25 25 25 25 25 25 25 25 25 25 25 25 25 25 25 25 25 25 15 Average Capacity 20 | 7 14 15 15 15 18 20 23 25 25 25 17 25 25 25 25 25 25 25 25 25 25 25 25 25 25 25 25 25 25 25 25 17 15 Most Carried 25 | 8 15 15 15 15 20 20 25 25 25 25 25 25 25 25 25 25 25 25 25 25 25 25 25 25 25 25 25 25 25 25 25 25 15 Average Carried 18 | 5 14 15 14 14 16 20 23 24 24 24 17 22 25 24 24 24 24 24 24 24 24 24 25 24 24 25 24 24 24 24 24 12 12 Final Capacity 25 | 8 15 15 15 15 20 20 25 25 25 25 25 25 25 25 25 25 25 25 25 25 25 25 25 25 25 25 25 25 25 25 25 15 15 Final Carried 25 | 8 15 15 15 15 20 20 25 24 25 25 25 25 25 25 25 25 25 25 25 25 25 25 25 24 25 25 25 25 25 25 25 15 6 Class Distribution -------------------- 27% | Scavenger-Mutant 17% | Scavenger-Tank 11% | Scavenger-Golem 8% | Tank 8% | Mutant 7% | Gunner 6% | Skirmisher 4% | Scavenger-Skirmisher 3% | Hacker-Tank Dominant Class ---------------- Mutant | -10/Materials Mutant | -10/Mines Mutant | -9/Materials Mutant | -9/Mines Mutant | -9/Exiles Mutant | -8/Mines Scavenger-Skirmisher | -8/Materials Hacker-Tank | -7/Factory Skirmisher | -7/Lower Caves Skirmisher | -7/Lower Caves Scavenger-Tank | -7/Zion Tank | -7/Deep Caves Tank | -6/Proximity Caves Tank | -6/Factory Tank | -6/Extension Commander-Tank | -6/Cetus Scavenger-Tank | -6/Archives Scavenger-Tank | -6/Hub_04(d) Scavenger-Tank | -5/Factory Scavenger-Golem | -5/Upper Caves Scavenger-Golem | -5/Upper Caves Scavenger-Golem | -5/Zhirov Scavenger-Golem | -4/Proximity Caves Scavenger-Golem | -4/Factory Scavenger-Golem | -4/Upper Caves Scavenger-Golem | -4/Upper Caves Scavenger-Golem | -4/Warlord Scavenger-Golem | -3/Proximity Caves Gunner | -3/Research Gunner | -2/Research Hacker-Tank | -1/Access Scavenger-Mutant | -1/Command Scavenger-Sprinter | -1/Access_0 Resources | -11 -10 -10 -9 -9 -9 -8 -8 -7 -7 -7 -7 -7 -6 -6 -6 -6 -6 -6 -5 -5 -5 -5 -4 -4 -4 -4 -4 -3 -3 -2 -1 -1 -1 ----------- Run | Yrd Mat Min Mat Min Exi Min Mat Fac Low Low Zio Dee Pro Fac Ext Cet Arc Hub Fac Upp Upp Zhi Pro Fac Upp Upp War Pro Res Res Acc Com Ac0 Matter Collected 18220 | 373 401 85 952 201 . 78 1171 404 388 241 1739 847 . 920 1190 153 223 2434 296 266 47 40 74 201 196 55 160 121 300 570 135 3958 1 Remotely 742 | . . . . . . . . . . . . . . . . . . . . . . . . . . . . . . . . 742 . Salvage Created 24031 | 261 517 77 1641 306 . 40 2150 551 470 198 1591 657 . 812 727 78 367 3191 632 750 207 344 105 1800 342 268 269 320 628 306 1095 3331 . Parts 1155 | 25 29 12 89 33 . 3 103 27 21 3 126 25 . 24 31 2 27 159 29 35 5 9 5 83 9 14 11 16 30 22 43 105 . Haulers Intercepted 14 | . 2 . 4 . . . 6 . 1 . . . . . . . . . . . . . . . . . . . 1 . . . . Recyclers Shooed 30 | . 2 . 6 . . . 7 . . . . . . 2 3 . . 2 1 . . . . 7 . . . . . . . . . Parts Field Recycled . | . . . . . . . . . . . . . . . . . . . . . . . . . . . . . . . . . . Retrieved Matter . | . . . . . . . . . . . . . . . . . . . . . . . . . . . . . . . . . . Parts Self-Destructed 105 | . . . . . . . . . 15 3 4 . . . . . . . . 33 5 6 3 . 9 11 . 16 . . . . . Prevented . | . . . . . . . . . . . . . . . . . . . . . . . . . . . . . . . . . . Parts Restored . | . . . . . . . . . . . . . . . . . . . . . . . . . . . . . . . . . . Kills | -11 -10 -10 -9 -9 -9 -8 -8 -7 -7 -7 -7 -7 -6 -6 -6 -6 -6 -6 -5 -5 -5 -5 -4 -4 -4 -4 -4 -3 -3 -2 -1 -1 -1 ------- Run | Yrd Mat Min Mat Min Exi Min Mat Fac Low Low Zio Dee Pro Fac Ext Cet Arc Hub Fac Upp Upp Zhi Pro Fac Upp Upp War Pro Res Res Acc Com Ac0 Combat Hostiles Destroyed 276 | . 6 6 25 10 . 1 23 6 10 4 2 13 . 4 10 1 . 37 7 17 3 . . 22 9 4 5 6 4 3 14 24 . Guns 134 | . 6 4 22 6 . 1 12 4 6 4 2 6 . 4 10 . . 36 3 . . . . . . . . . . . 3 5 . Cannons 90 | . . . . . . . 3 . . . . . . . . . . . . 15 3 . . 20 9 4 5 5 3 3 11 9 . AOE 41 | . . 2 1 4 . . 8 2 4 . . 4 . . . . . . 4 2 . . . 2 . . . . . . . 8 . Classes Destroyed 32 | 2 4 1 4 . . 1 1 1 2 . 4 3 . . . . . 2 . 1 . . 2 1 . . 3 . . . . . . Worker 25 | . 1 . 5 . . . 4 . . . . . . . . . . 7 4 . . . . . . . . . . 1 . 3 . Builder 14 | . . . 1 1 . . 2 1 . . . . . . . . . 4 1 . . . . 3 . . . . . . 1 . . Tunneler 13 | 9 . . 1 1 . . . . . . . . . 1 . . . . . . . . . . . . . . . 1 . . . Hauler 14 | . 2 . 4 . . . 6 . 1 . . . . . . . . . . . . . . . . . . . 1 . . . . Recycler 40 | 1 1 . 4 2 . . 11 3 . . . . . 4 1 . . 3 2 . . . . 3 . . . . 1 . 1 3 . Minesweeper 1 | . . . . . . . . . . . . . . . . . . . . . . . 1 . . . . . . . . . . Mechanic 2 | . . . . . . . 1 . . . . . . . . . . . . . . . . . . . . . . . . 1 . Operator 12 | . . . 1 . . . . . . . . . . . . . 9 . . . . . . . . . . . 1 1 . . . Drone 6 | . . . . . . . . . . . 3 . . . . . . . . . . . . . . . . 2 . . . 1 . Watcher 25 | . 3 . 4 . . . 5 . . . . . . 2 . . . 3 . . . . . 4 . . . . 2 . 1 1 . Swarmer 51 | . . 6 5 7 . . 10 . . 1 . . . . 1 . . . . 8 . . . 3 6 . . . . . 4 . . Saboteur 1 | . . . . . . . . . . . . . . . . . . . . . . . . . . . 1 . . . . . . Grunt 89 | . 6 . 10 2 . . 8 3 8 1 . . . . 3 . . 13 5 7 3 . . . 1 . . . . . 7 12 . Brawler 2 | . . . . . . . . . 1 . . . . . . . . . . . . . . . . . . . . . . 1 . Duelist 5 | . . . 3 1 . . . . . . . . . . . . . . . . . . . . . . . . . . 1 . . Protector 1 | . . . . . . . . . . . . . . . . . . 1 . . . . . . . . . . . . . . . Sentry 30 | . . . 7 . . . 4 2 . 1 . . . 2 4 . . 3 . 1 . . . 3 1 1 . . . 1 . . . Specialist 2 | . . . . . . . . . . . . . . . . . . . . . . . . 2 . . . . . . . . . Hunter 25 | . . . . . . 1 1 . . 1 . . . . 2 . . 5 . . . . . 6 . . . 2 3 . . 4 . Programmer 28 | . . . . . . . . 1 . . . . . 2 . . . 4 2 . . . . 8 1 2 2 1 1 . 2 2 . Heavy 2 | . . . . . . . . . . . . . . . . . . 2 . . . . . . . . . . . . . . . Behemoth 4 | . . . . . . . . . . . . . . . . . . . . 1 . . . . . . . 1 . . . 2 . Cetus Guard 1 | . . . . . . . . . . . . . . . . 1 . . . . . . . . . . . . . . . . . M Guard 1 | . . . . . . . . . . . . . . . . . . . . . . . . . . . . . . . . 1 . Lightning 9 | . . . . . . . . . . . . . . . . . . 9 . . . . . . . . . . . . . . . Combat Programmer 2 | . . . . . . . . . . . . . . . . . . . . . . . . . . . . . . . . 2 . Striker 3 | . . . . . . . . . . . . . . . . . . . . . . . . . . . 1 . . 2 . . . Executioner 1 | . . . . . . . . . . . . . . . . . . . . . . . . . . . 1 . . . . . . Zionite 57 | . . . . . . . . . . . 57 . . . . . . . . . . . . . . . . . . . . . . Z-Technician 5 | . . . . . . . . . . . . 5 . . . . . . . . . . . . . . . . . . . . . Z-Light 4 | . . . . . . . . . . . . 4 . . . . . . . . . . . . . . . . . . . . . Decomposer 2 | . . . . . . . . . . . . . . . . . . . . 1 1 . . . . . . . . . . . . Samaritan 2 | . . . . . . . . . . . . . . . . . . . . . . . 2 . . . . . . . . . . Tinkerer 4 | . . . . . . . . . . . 4 . . . . . . . . . . . . . . . . . . . . . . Thief 1 | . . . . . . . . . 1 . . . . . . . . . . . . . . . . . . . . . . . . Assembled 6 | . . . . . . . . . . . . 6 . . . . . . . . . . . . . . . . . . . . . Golem 3 | . . . . . . . . . . . . 3 . . . . . . . . . . . . . . . . . . . . . Savage 1 | . . . . . . . . . . . . . . . . . 1 . . . . . . . . . . . . . . . . Butcher 2 | . . . . . . . . . . . 2 . . . . . . . . . . . . . . . . . . . . . . Mutant 2 | . . . . . . . . . . . 1 . . . . . . . . . . . . . . 1 . . . . . . . Best Kill Streak 8 | 5 2 3 4 4 . 1 6 2 6 2 4 3 . 3 3 1 4 8 6 4 3 . 1 7 5 1 1 2 4 2 7 6 . Combat Bots Only 7 | . 2 3 3 4 . 1 4 2 5 2 1 3 . 1 3 1 . 6 5 4 3 . . 5 5 1 1 2 2 2 7 5 . Max Kills in Single Turn 4 | 1 1 2 2 3 . 1 4 2 3 1 1 1 . 1 1 1 1 2 2 2 1 . 1 3 2 1 1 1 1 1 3 3 . Gunslinging 1 | . . . . . . . . . . . . . . . . . . 1 . . . . . . . . . . . . . . . Exploded 3 | . . 2 1 3 . . 3 2 3 . . 1 . . . . . . 2 1 . . . 2 . . . . . . . 3 . Melee . | . . . . . . . . . . . . . . . . . . . . . . . . . . . . . . . . . . Uniques/NPCs Destroyed 3 | . . . . . . . . . . . 1 . . . . . . . . . . . . . . . . . . . . 2 . Imprinter (-7/Zion) MAIN.C Shell (-1/Command) MAIN.C (-1/Command) Combat | -11 -10 -10 -9 -9 -9 -8 -8 -7 -7 -7 -7 -7 -6 -6 -6 -6 -6 -6 -5 -5 -5 -5 -4 -4 -4 -4 -4 -3 -3 -2 -1 -1 -1 -------- Run | Yrd Mat Min Mat Min Exi Min Mat Fac Low Low Zio Dee Pro Fac Ext Cet Arc Hub Fac Upp Upp Zhi Pro Fac Upp Upp War Pro Res Res Acc Com Ac0 Hostile Shots Fired 2189 | . 44 12 102 35 . 8 70 58 21 23 19 65 . 45 200 . . 276 37 81 16 . . 225 46 7 36 68 77 18 104 224 272 Missed 632 | . 6 6 23 11 . 1 20 21 5 8 10 16 . 11 59 . . 51 9 14 3 . . 67 11 5 5 18 21 8 34 59 130 Hits 1557 | . 38 6 79 24 . 7 50 37 16 15 9 49 . 34 141 . . 225 28 67 13 . . 158 35 2 31 50 56 10 70 165 142 Melee 65 | . . . 7 5 . . . . 2 . 3 . . . . . . . . . . . . 4 . . 10 . 1 5 4 . 24 Projectile 1492 | . 38 6 72 19 . 7 50 37 14 15 6 49 . 34 141 . . 225 28 67 13 . . 154 35 2 21 50 55 5 66 165 118 AOE 21 | . . . . . . . . . . . . . . . . . . . . . . . . . . . . . . . . 20 1 Critical Strikes 80 | . . . 2 1 . . 1 . 1 . . 1 . . 3 . . 26 1 4 1 . . 4 1 . . 3 4 . 1 13 13 Part Disruptions 6 | . . . . . . . . . . . . . . . . . . . . . . . . 2 . . . 1 . . 1 1 1 Damage Taken 27373 | . 477 44 1123 420 . 108 682 347 250 185 261 1412 . 287 1663 27 22 3482 429 1212 245 . . 2107 620 8 632 544 645 225 1369 3608 4939 Core 3043 | . 95 6 76 29 . 20 30 39 47 5 . 142 . 23 175 . . 279 18 116 . . . 139 40 . 135 16 54 13 98 173 1275 Absorbed by Shields 3042 | . . . . . . . . . . . . . . . 2 27 . . . . . . . . . . 372 478 369 135 209 1450 . Reduced by Siege Mode 226 | . . . . . . . . . . . . . . . . . . 186 40 . . . . . . . . . . . . . . Redirected to Shielding 653 | . . . . . . . . . . . . 67 . 85 77 . . 90 15 . . . . . . . . . . . . 226 93 Ignored by Resistances 4121 | . . . . . . . . 15 . . 4 266 . 18 121 . . 2250 168 . . . . 503 15 29 . . 36 . 74 510 112 Regen/Repaired (Parts) 1704 | . . . 232 . . . 67 . . . 435 . . 111 . . . . . . . . . 712 . . 72 . . 75 . . . Core Remaining (%) 78 | 100 . 59 . . . 68 94 . . . . . 66 . . . . 43 . . . . 86 . . . . 71 95 99 . . . Volleys Fired 3962 | 25 57 8 162 25 . 8 136 33 15 21 1625 76 . 51 144 5 61 296 44 34 7 . 4 92 19 6 23 13 63 22 78 795 14 Largest 3 | 2 2 2 2 2 . 2 3 3 3 3 3 3 . 3 3 3 1 3 3 3 3 . 3 3 3 3 3 3 3 3 3 3 1 Hottest 225 | 70 100 85 100 100 . 84 148 75 75 75 160 150 . 75 80 150 60 150 84 75 75 . 75 75 75 75 75 75 75 75 88 225 88 Shots Fired 5719 | 50 107 15 267 47 . 16 299 77 41 48 1842 137 . 141 262 16 60 536 64 86 24 . 13 184 52 19 43 34 80 56 136 953 14 Gun 3022 | 50 105 14 223 44 . 16 235 66 37 40 222 96 . 141 262 16 60 536 60 3 . . . . . . . . . . 14 782 . Cannon 2559 | . . . . . . . 30 9 . 8 1597 35 . . . . . . . 77 24 . 13 183 52 19 43 34 80 56 122 163 14 Launcher 57 | . . 1 2 2 . . 4 2 4 . 23 6 . . . . . . 4 6 . . . 1 . . . . . . . 2 . Special 81 | . 2 . 42 1 . . 30 . . . . . . . . . . . . . . . . . . . . . . . . 6 . Kinetic 1743 | 43 74 7 112 22 . 8 148 66 37 40 220 71 . 137 176 . 1 353 33 . . . . 10 . . . . . . 14 171 . Thermal 3148 | 7 33 7 153 23 . 8 147 9 . 8 1599 39 . 4 86 . 59 155 27 80 24 . 13 173 52 19 43 34 80 56 122 88 . Explosive 62 | . . 1 2 2 . . 4 2 4 . 23 6 . . . . . . 4 6 . . . 1 . . . . . . . 7 . Electromagnetic 722 | . . . . . . . . . . . . 21 . . . 16 . 28 . . . . . . . . . . . . . 643 14 Entropic 43 | . . . . . . . . . . . . . . . . . . . . . . . . . . . . . . . . 43 . Robot Hit Streak 68 | 8 15 4 16 10 . 9 15 26 9 17 20 16 . 11 13 14 8 45 21 27 17 . 27 18 18 21 10 8 28 11 14 68 9 Robot Miss Streak 7 | 3 4 2 3 3 . 1 4 4 1 1 6 4 . 4 3 2 3 7 2 2 . . . 4 5 2 1 1 2 4 2 6 1 Penetration Max 1 | . . . . . . . . . . . . . . . . . . 1 1 . . . . . . . . . . . . 1 . Secondary Targets 23 | . 1 . 2 1 . . 1 . 3 . . . . . 3 . . 8 1 . . . . . . . . . . . . 3 . Max Gunslinging Chain 1 | . 1 . 1 1 . . 1 . 1 . . . . . 1 . . 1 1 . . . . . . . . . . . . 1 . Capacitor 315 | . . . . . . . . . . . . . . . . . . . . . . . . . . . . . . . . 301 14 Shots Hit Robots 2315 | 28 73 7 151 27 . 12 167 45 29 34 186 61 . 86 134 15 39 283 42 55 16 7 10 98 27 9 33 30 30 25 57 488 11 Core Hits 944 | 13 28 5 59 18 . 3 78 20 28 9 88 39 . 27 41 12 18 123 27 30 7 3 6 44 10 6 10 8 13 11 27 132 1 Critical Kills 25 | . . 1 . . . . . . . . 1 1 . . . . . 20 . . . . . . . . . . . . 1 1 . Critical Parts Destroyed 32 | . . . 2 . . . . . . . 1 1 . 1 1 . . 19 1 . . . . . . . . . . . 1 5 . Critical Strikes 88 | 1 1 1 9 1 . . 5 . . . 2 2 . 1 1 . . 39 1 . . 1 . 2 . . . 1 . . 2 18 . Burn 15 | 1 1 . 7 1 . . 5 . . . . . . . . . . . . . . . . . . . . . . . . . . Meltdown 1 | . . . . . . . . . . . 1 . . . . . . . . . . . . . . . . . . . . . . Destroy 55 | . . 1 1 . . . . . . . 1 2 . 1 1 . . 39 1 . . . . . . . . . . . 2 6 . Blast 2 | . . . . . . . . . . . . . . . . . . . . . . . . 2 . . . . . . . . . Corrupt 1 | . . . . . . . . . . . . . . . . . . . . . . . . . . . . . . . . 1 . Smash 1 | . . . 1 . . . . . . . . . . . . . . . . . . . . . . . . . . . . . . Sever 1 | . . . . . . . . . . . . . . . . . . . . . . . . . . . . . . . . 1 . Impale 10 | . . . . . . . . . . . . . . . . . . . . . . 1 . . . . . 1 . . . 8 . Detonate 2 | . . . . . . . . . . . . . . . . . . . . . . . . . . . . . . . . 2 . Melee Attacks 117 | . . . 21 . . . . . . . . . . . . . . . . . . 7 . . . . . 7 . . . 82 . Impact 21 | . . . 21 . . . . . . . . . . . . . . . . . . . . . . . . . . . . . . Slashing 24 | . . . . . . . . . . . . . . . . . . . . . . . . . . . . . . . . 24 . Piercing 72 | . . . . . . . . . . . . . . . . . . . . . . 7 . . . . . 7 . . . 58 . Sneak Attacks 6 | . . . 2 . . . . . . . . . . . . . . . . . . . . . . . . . . . . 4 . Combat Hostiles . | . . . . . . . . . . . . . . . . . . . . . . . . . . . . . . . . . . Follow-up Attacks . | . . . . . . . . . . . . . . . . . . . . . . . . . . . . . . . . . . Damage Inflicted 65739 | 332 874 243 2719 698 . 181 3452 955 1088 526 3834 1521 . 1507 2297 300 1216 7592 1462 2755 675 460 430 5446 1243 468 1616 1285 1574 1387 2782 14732 89 Guns 29036 | 332 855 96 2228 382 . 168 2324 769 470 526 1575 968 . 1507 2297 300 1216 7362 964 30 . . . . . . . . . . 347 4320 . Cannons 23532 | . . . . . . . 491 . . . 1683 136 . . . . . . . 2298 675 . 430 5098 1243 468 1616 1126 1574 1336 2416 2853 89 Explosions 6916 | . . 147 125 316 . . 628 186 618 . 576 417 . . . . . 176 498 427 . . . 348 . . . . . . . 2454 . Melee 3566 | . . . 366 . . . . . . . . . . . . . . . . . . 460 . . . . . 159 . . . 2581 . Ramming 2424 | . 19 . . . . 13 9 . . . . . . . . . . 54 . . . . . . . . . . . 51 19 2259 . Kinetic 20644 | 295 579 37 1104 180 . 108 1324 769 470 526 1575 631 . 1507 2268 . 28 6147 600 . . . . 243 . . . . . . 347 1906 . Thermal 28234 | 37 276 59 1124 242 . 60 1491 . . . 1683 136 . . 29 . 1188 966 364 2328 675 . 430 4855 1243 468 1616 1126 1574 1336 2416 2512 . Explosive 6612 | . . 147 125 276 . . 628 186 618 . 576 417 . . . . . . 498 427 . . . 348 . . . . . . . 2366 . Electromagnetic 1244 | . . . . . . . . . . . . 337 . . . 300 . 425 . . . . . . . . . . . . . 93 89 Impact 420 | . . . 366 . . . . . . . . . . . . . . . . . . . . . . . . . . . . 54 . Slashing 1045 | . . . . . . . . . . . . . . . . . . . . . . . . . . . . . . . . 1045 . Piercing 2420 | . . . . . . . . . . . . . . . . . . . . . . 460 . . . . . 159 . . . 1801 . Entropic 2696 | . . . . . . . . . . . . . . . . . . . . . . . . . . . . . . . . 2696 . Highest Corruption 22 | . . . . . . . . 1 1 1 1 . . 1 7 7 8 22 2 2 2 2 2 7 7 7 7 2 . . 1 9 6 Average Corruption 4 | . . . . . . . . 1 1 1 1 . . 1 3 7 4 19 1 2 2 2 2 3 7 7 3 2 . . 1 2 5 Corruption Purged 40 | . . . . . . . . . . . . . . . . . 23 . . . . . . . . . . . . . . 17 . Corruption Blocked . | . . . . . . . . . . . . . . . . . . . . . . . . . . . . . . . . . . Effects 455 | . . . . . . . . 3 11 15 . . . . 35 17 9 138 5 27 13 5 14 27 40 14 3 25 . . . 54 . Message Errors 101 | . . . . . . . . 1 1 3 . . . . 9 4 3 31 1 6 4 2 3 9 7 2 2 2 . . . 11 . Matter Fused 100 | . . . . . . . . . . 4 . . . . 6 5 . 29 1 8 2 1 3 1 9 4 . 11 . . . 16 . Heat Flow Errors 48 | . . . . . . . . . 5 . . . . . 8 2 . 12 1 . 1 . 1 1 7 1 1 2 . . . 6 . Energy Discharges 56 | . . . . . . . . . 2 3 . . . . 5 2 4 17 2 1 1 1 2 5 3 3 . 1 . . . 4 . Parts Rejected 5 | . . . . . . . . . . . . . . . . . . 2 . . . . . . 1 . . . . . . 2 . Parts Fused 4 | . . . . . . . . . . . . . . . . . . 2 . . . . . 1 1 . . . . . . . . Data Loss (minor) 58 | . . . . . . . . 1 3 2 . . . . 5 1 . 13 . 4 2 1 2 5 5 3 . 5 . . . 6 . Data Loss (major) 23 | . . . . . . . . 1 . 2 . . . . . 1 . 6 . 3 . . 1 1 4 . . 1 . . . 3 . Misfires 20 | . . . . . . . . . . 1 . . . . 2 1 . 1 . 4 3 . 1 1 1 1 . 2 . . . 2 . Alerts 9 | . . . . . . . . . . . . . . . . 1 . 3 . 1 . . 1 . . . . 1 . . . 2 . Misdirections 1 | . . . . . . . . . . . . . . . . . . 1 . . . . . . . . . . . . . . . Weapon Failures 30 | . . . . . . . . . . . . . . . . . 2 21 . . . . . 3 2 . . . . . . 2 . Overload Shots . | . . . . . . . . . . . . . . . . . . . . . . . . . . . . . . . . . . Overflow Damage 1782 | . . 27 57 5 . . 37 . . . 49 46 . . . . . 28 . 50 9 142 109 350 33 10 17 124 113 70 113 393 . Projectiles 1167 | . . . . . . . 11 . . . 49 . . . . . . . . 50 9 . 109 350 33 10 17 124 113 49 113 130 . Explosions 110 | . . 27 . 5 . . 26 . . . . 46 . . . . . . . . . . . . . . . . . . . 6 . Melee 505 | . . . 57 . . . . . . . . . . . . . . 28 . . . 142 . . . . . . . 21 . 257 . Knockbacks 45 | . . . 1 . . . . . . . . . . . . . . . . . . . . 2 . . . . . 1 . 41 . Impact 42 | . . . 1 . . . . . . . . . . . . . . . . . . . . . . . . . . 1 . 40 . Kinetic 2 | . . . . . . . . . . . . . . . . . . . . . . . . 1 . . . . . . . 1 . Secondary 1 | . . . . . . . . . . . . . . . . . . . . . . . . 1 . . . . . . . . . Self-Inflicted Damage 297 | . . . 17 94 . . 41 . . . . . . . . . . 101 28 . . . . 16 . . . . . . . . . Shots 8 | . . . 1 2 . . 1 . . . . . . . . . . 2 1 . . . . 1 . . . . . . . . . Rammed 159 | . 3 . . . . 2 1 . . . . . . . . . . 2 . . . . . . . . . . . . . 151 . Targets Rammed 313 | . 3 . . 1 . 2 1 . . . . . . . . . . 2 . . . . . . . . . . . 1 1 302 . Kicked 153 | . . . . . . . . . . . . . . . . . . . . . . . . . . . . . . 1 1 151 . Crushed 1 | . . . . 1 . . . . . . . . . . . . . . . . . . . . . . . . . . . . . Highest Temperature 377 | 45 252 68 144 63 . . 377 154 252 96 66 18 . 7 192 146 . 246 83 37 241 . 136 216 219 183 209 220 . . 4 246 27 Average Temperature 47 | 26 91 25 28 19 . . 59 56 97 43 9 12 . 4 59 53 . 50 44 14 132 . 84 76 96 107 106 91 . . 4 44 12 Received Heat Transfer 4738 | . 261 . 300 36 . . 207 102 144 45 42 330 . 54 318 . . 575 126 250 135 . . 384 63 . 40 368 63 8 254 192 441 Effects 1 | . 1 . . . . . . . . . . . . . . . . . . . . . . . . . . . . . . . . Energy Bleed 1 | . 1 . . . . . . . . . . . . . . . . . . . . . . . . . . . . . . . . Siege Activations 12 | . . . . . . . . . . . . . . . . . . 10 2 . . . . . . . . . . . . . . Total Turns 295 | . . . . . . . . . . . . . . . . . . 255 40 . . . . . . . . . . . . . . Longest Duration 61 | . . . . . . . . . . . . . . . . . . 61 21 . . . . . . . . . . . . . . Martial Activations . | . . . . . . . . . . . . . . . . . . . . . . . . . . . . . . . . . . Shielding Activations . | . . . . . . . . . . . . . . . . . . . . . . . . . . . . . . . . . . Robots Disrupted . | . . . . . . . . . . . . . . . . . . . . . . . . . . . . . . . . . . Combat Hostiles . | . . . . . . . . . . . . . . . . . . . . . . . . . . . . . . . . . . Robots Corrupted 10 | . . . 2 . . . . . . . . 3 . . . 1 . 1 . . . . . . . . . . . 1 . 2 . Combat Hostiles 9 | . . . 2 . . . . . . . . 3 . . . 1 . 1 . . . . . . . . . . . . . 2 . Parts Fried 4 | . . . 1 . . . . . . . . . . . . . . 2 . . . . . . . . . . . 1 . . . Impact Corruptions 15 | . . . 3 . . . . . . . . . . . . . . 1 . . . . . . . . . . . 1 . 10 . Robots Melted 2 | . . . . . . . . . . . 1 . . . . . . . . . . . . . . . . . 1 . . . . Combat Hostiles 1 | . . . . . . . . . . . . . . . . . . . . . . . . . . . . . 1 . . . . Parts Melted 29 | . 3 . 6 . . . 4 . . . 1 . . . . . 1 2 1 2 1 . . 2 3 . . . 1 . 2 . . Heat Transferred 25638 | 185 888 148 3293 642 . 148 3552 . . . 2677 185 . . 37 . 1554 1196 481 1262 400 . 250 2525 725 225 747 600 706 725 1250 1237 . Parts Sabotaged 1 | . . . . . . . . . . . . . . . . . . . . . . . . 1 . . . . . . . . . Parts Stolen . | . . . . . . . . . . . . . . . . . . . . . . . . . . . . . . . . . . Parts Stripped . | . . . . . . . . . . . . . . . . . . . . . . . . . . . . . . . . . . Power Chain Reactions 1 | . . . . . . . . . . . . . . . . . . 1 . . . . . . . . . . . . . . . Alert | -11 -10 -10 -9 -9 -9 -8 -8 -7 -7 -7 -7 -7 -6 -6 -6 -6 -6 -6 -5 -5 -5 -5 -4 -4 -4 -4 -4 -3 -3 -2 -1 -1 -1 ------- Run | Yrd Mat Min Mat Min Exi Min Mat Fac Low Low Zio Dee Pro Fac Ext Cet Arc Hub Fac Upp Upp Zhi Pro Fac Upp Upp War Pro Res Res Acc Com Ac0 Maximum Alert Level 4 | . . . 1 1 . . 1 . . . . . . . . . . 4 3 . . . . 2 . . . . . . 1 2 . Low Security (%) 39 | 100 100 100 60 91 . 100 51 100 . . . . . 100 100 100 100 38 . . . . . 53 . . . . 100 100 81 . . Level 1 9 | . . . 39 8 . . 48 . . . . . . . . . . 23 . . . . . 33 . . . . . . 18 . . Level 2 47 | . . . . . . . . . . . . . . . . . . 6 97 . . . . 12 . . . . . . . 99 . Level 3 1 | . . . . . . . . . . . . . . . . . . 18 2 . . . . . . . . . . . . . . Level 4 . | . . . . . . . . . . . . . . . . . . 13 . . . . . . . . . . . . . . . Level 5 . | . . . . . . . . . . . . . . . . . . . . . . . . . . . . . . . . . . High Security . | . . . . . . . . . . . . . . . . . . . . . . . . . . . . . . . . . . Max Security . | . . . . . . . . . . . . . . . . . . . . . . . . . . . . . . . . . . Peak Influence 1458 | 20 87 102 295 216 . 30 297 122 . . . . . 63 95 166 155 1458 707 . . . . 472 . . . . 47 65 218 677 . Initial 707 | . . 13 . 105 . . . 122 . . . . . . 12 24 40 . 707 . . . . . . . . . . 3 . 128 . Average 170 | 3 17 19 174 125 . 1 185 21 . . . . . 10 29 62 82 504 620 . . . . 165 . . . . 8 5 89 481 . Influence Increases 11308 | 50 281 181 1053 292 . 30 871 189 195 90 15 . . 203 483 309 285 2219 285 430 70 15 5 885 200 100 335 120 272 161 508 1161 15 Destroy 0b10 Robot/C 5800 | . 120 120 580 200 . 20 460 120 180 80 . . . 80 280 160 80 820 140 340 60 . . 440 180 80 240 80 80 60 280 520 . Destroy 0b10 Robot/NC 820 | 50 35 . 105 20 . . 145 20 5 . 15 . . 35 10 10 45 95 35 . . 15 5 50 . . . 10 25 15 15 60 . Destroy Leader 1248 | . 40 30 168 30 . 10 122 40 10 10 . . . 44 42 . . 256 20 60 10 . . 128 20 20 . 30 14 20 42 82 . Allied During Kill 634 | . . . 25 . . . . . . . . . . . 35 127 125 198 . . . . . . . . 95 . . . . 29 . Successful Hack 276 | . 8 14 59 . . . 10 . . . . . . 12 25 . . . . . . . . 37 . . . . 54 . 15 42 . Select Force Hacks 160 | . 60 . . . . . . . . . . . . . . . . 100 . . . . . . . . . . . . . . . Disable Machine 720 | . . 15 15 15 . . 45 . . . . . . 15 15 . 30 375 . . . . . 45 . . . . 15 . 15 120 . Destroy Structure 1155 | . 3 2 71 27 . . 59 9 . . . . . 2 16 12 5 255 30 . . . . 140 . . . . 84 66 111 263 . Partial Spotted 30 | . . . . . . . . . . . . . . . . . . . 15 . . . . . . . . . . . . . 15 Lose Combat Pursuer 465 | . 15 . 30 . . . 30 . . . . . . 15 60 . . 120 45 30 . . . 45 . . . . . . 30 45 . Influence Decreases 11308 | 50 245 217 783 562 . 30 601 385 268 91 . 15 . 177 464 254 385 774 1158 760 312 15 5 423 646 116 142 313 266 167 308 742 634 Entered New Map 2536 | . . 23 . 165 . . . 148 29 1 . 15 . . 14 21 60 . 738 212 47 . . . 172 4 . 193 . 3 . 72 619 Time Decay 7972 | 50 245 194 715 387 . 30 591 237 239 90 . . . 177 370 193 285 634 410 538 265 15 5 413 474 112 82 110 259 164 308 380 . Lost Part 295 | . . . 20 10 . . 10 . . . . . . . 10 . . 80 10 10 . . . 10 . . . 10 . . . 110 15 Lost Ally 505 | . . . 48 . . . . . . . . . . . 70 40 40 60 . . . . . . . . 60 . 7 . . 180 . Squads Dispatched 59 | . 3 . 2 . . . 3 3 . . . . . 2 1 . . 23 4 . . . . 7 . . . . 3 1 3 4 . Investigation 15 | . 3 . . . . . 2 1 . . . . . . . . . 7 . . . . . . . . . . 2 . . . . Extermination 20 | . . . . . . . . 2 . . . . . 2 . . . 6 2 . . . . 4 . . . . . . 2 2 . Reinforcement 18 | . . . 2 . . . . . . . . . . . 1 . . 8 2 . . . . 2 . . . . 1 1 1 . . Assault 4 | . . . . . . . . . . . . . . . . . . 1 . . . . . 1 . . . . . . . 2 . Garrison 2 | . . . . . . . 1 . . . . . . . . . . 1 . . . . . . . . . . . . . . . Intercept . | . . . . . . . . . . . . . . . . . . . . . . . . . . . . . . . . . . Searches Triggered . | . . . . . . . . . . . . . . . . . . . . . . . . . . . . . . . . . . Unchained Authorized 3 | . . . . . . . . . . . . . . . . . . . 1 . . . . 1 . . . . . . 1 . . Construction Impeded 5 | . . . . . . . . . . . . . . . . . . 2 2 . . . . 1 . . . . . . . . . Haulers Reinforced . | . . . . . . . . . . . . . . . . . . . . . . . . . . . . . . . . . . Active Scanning Responses . | . . . . . . . . . . . . . . . . . . . . . . . . . . . . . . . . . . Cargo Convoy Interrupts . | . . . . . . . . . . . . . . . . . . . . . . . . . . . . . . . . . . Stealth | -11 -10 -10 -9 -9 -9 -8 -8 -7 -7 -7 -7 -7 -6 -6 -6 -6 -6 -6 -5 -5 -5 -5 -4 -4 -4 -4 -4 -3 -3 -2 -1 -1 -1 --------- Run | Yrd Mat Min Mat Min Exi Min Mat Fac Low Low Zio Dee Pro Fac Ext Cet Arc Hub Fac Upp Upp Zhi Pro Fac Upp Upp War Pro Res Res Acc Com Ac0 Distress Signals 59 | . 2 . 4 . . . 4 . . . . . . . 1 2 . 3 2 . . . . 5 . . . . 10 6 . 20 . Communications Jammed 29 | . . . . . . . . . . . . . . . . . . . . . . . . . . . . . 8 . . 21 . Distress Signals 29 | . . . . . . . . . . . . . . . . . . . . . . . . . . . . . 8 . . 21 . Times Spotted 582 | . 17 9 46 10 . 1 37 6 9 5 80 13 . 9 20 10 24 57 16 18 3 . . 41 9 3 37 3 22 7 16 38 16 Peak Tracking Total 14 | . 4 3 6 4 . 1 6 3 5 3 3 3 . 3 4 5 1 6 6 4 3 . . 7 5 1 14 1 4 2 5 6 12 Tactical Retreats 24 | . 1 . 2 . . . 2 . . . 1 . . 1 2 . . 7 1 2 . . . 2 . . . . . . 1 1 1 Traps | -11 -10 -10 -9 -9 -9 -8 -8 -7 -7 -7 -7 -7 -6 -6 -6 -6 -6 -6 -5 -5 -5 -5 -4 -4 -4 -4 -4 -3 -3 -2 -1 -1 -1 ------- Run | Yrd Mat Min Mat Min Exi Min Mat Fac Low Low Zio Dee Pro Fac Ext Cet Arc Hub Fac Upp Upp Zhi Pro Fac Upp Upp War Pro Res Res Acc Com Ac0 Traps Triggered 19 | . 1 . . . . . 2 3 . . . . . . 3 . . . 1 . . . . 2 . . . . 4 . . 3 . Indirectly . | . . . . . . . . . . . . . . . . . . . . . . . . . . . . . . . . . . Trap Hack Attempts . | . . . . . . . . . . . . . . . . . . . . . . . . . . . . . . . . . . Triggered . | . . . . . . . . . . . . . . . . . . . . . . . . . . . . . . . . . . Disarmed . | . . . . . . . . . . . . . . . . . . . . . . . . . . . . . . . . . . Reprogrammed . | . . . . . . . . . . . . . . . . . . . . . . . . . . . . . . . . . . Reused . | . . . . . . . . . . . . . . . . . . . . . . . . . . . . . . . . . . Traps Extracted . | . . . . . . . . . . . . . . . . . . . . . . . . . . . . . . . . . . Installed . | . . . . . . . . . . . . . . . . . . . . . . . . . . . . . . . . . . Triggered . | . . . . . . . . . . . . . . . . . . . . . . . . . . . . . . . . . . Machines | -11 -10 -10 -9 -9 -9 -8 -8 -7 -7 -7 -7 -7 -6 -6 -6 -6 -6 -6 -5 -5 -5 -5 -4 -4 -4 -4 -4 -3 -3 -2 -1 -1 -1 ---------- Run | Yrd Mat Min Mat Min Exi Min Mat Fac Low Low Zio Dee Pro Fac Ext Cet Arc Hub Fac Upp Upp Zhi Pro Fac Upp Upp War Pro Res Res Acc Com Ac0 Machines Disabled 55 | . . 1 1 1 . . 3 . . . 3 3 . 1 1 . 2 25 . . . . . 3 . . 1 . 1 . 1 8 . Max in Single Turn 10 | . . 1 1 1 . . 1 . . . 1 1 . 1 . . 1 10 . . . . . 1 . . 1 . 1 . 1 1 . Garrison Access 5 | . . . . . . . 1 . . . . . . 1 . . . 1 . . . . . . . . . . . 2 . . . Network Hub 4 | . . . . . . . . . . . . . . . . . . 4 . . . . . . . . . . . . . . . Machines Repaired . | . . . . . . . . . . . . . . . . . . . . . . . . . . . . . . . . . . Machines Dismantled . | . . . . . . . . . . . . . . . . . . . . . . . . . . . . . . . . . . Machines Sabotaged 2 | . . . . . . . . . . . . . . . . . . 2 . . . . . . . . . . . . . . . Overloaded Fab Kills . | . . . . . . . . . . . . . . . . . . . . . . . . . . . . . . . . . . Hacking | -11 -10 -10 -9 -9 -9 -8 -8 -7 -7 -7 -7 -7 -6 -6 -6 -6 -6 -6 -5 -5 -5 -5 -4 -4 -4 -4 -4 -3 -3 -2 -1 -1 -1 --------- Run | Yrd Mat Min Mat Min Exi Min Mat Fac Low Low Zio Dee Pro Fac Ext Cet Arc Hub Fac Upp Upp Zhi Pro Fac Upp Upp War Pro Res Res Acc Com Ac0 Machines Accessed 77 | . 8 1 12 . 2 . 9 3 . . . . . 3 5 1 . 8 . 2 . 4 . 4 . . 4 . 4 1 4 2 . Terminals 42 | . 6 1 8 . . . 4 1 . . . . . 1 5 1 . 7 . . . . . . . . . . 2 . 4 2 . Fabricators . | . . . . . . . . . . . . . . . . . . . . . . . . . . . . . . . . . . Repair Stations 7 | . . . 1 . . . 1 . . . . . . 1 . . . . . . . . . 4 . . . . . . . . . Recycling Units 5 | . 2 . 1 . . . 2 . . . . . . . . . . . . . . . . . . . . . . . . . . Scanalyzers 6 | . . . 2 . . . 1 1 . . . . . . . . . . . . . . . . . . . . 2 . . . . Garrison Access 5 | . . . . . . . 1 1 . . . . . 1 . . . 1 . . . . . . . . . . . 1 . . . Total Hacks 211 | . 21 5 37 . 24 . 25 4 . . . . . 5 9 1 . 13 . 2 . 17 . 13 . . 11 . 8 1 7 8 . Successful 151 | . 11 3 25 . 24 . 18 2 . . . . . 3 7 1 . 8 . 2 . 17 . 7 . . 11 . 3 1 4 4 . Failed 60 | . 10 2 12 . . . 7 2 . . . . . 2 2 . . 5 . . . . . 6 . . . . 5 . 3 4 . Catastrophic 4 | . . 1 2 . . . . . . . . . . 1 . . . . . . . . . . . . . . . . . . . Database Lockouts . | . . . . . . . . . . . . . . . . . . . . . . . . . . . . . . . . . . Manual 78 | . 17 4 23 . 1 . 8 2 . . 4 . . . 4 1 . 12 . . . . . . . . . . . . . 2 . Terminals 102 | . 16 5 24 . . . 13 2 . . . . . 1 9 1 . 12 . . . . . . . . . . 4 . 7 8 . Fabricators . | . . . . . . . . . . . . . . . . . . . . . . . . . . . . . . . . . . Repair Stations 24 | . . . 7 . . . 2 . . . . . . 2 . . . . . . . . . 13 . . . . . . . . . Recycling Units 11 | . 5 . 2 . . . 4 . . . . . . . . . . . . . . . . . . . . . . . . . . Scanalyzers 13 | . . . 4 . . . 4 1 . . . . . . . . . . . . . . . . . . . . 4 . . . . Garrison Access 7 | . . . . . . . 2 1 . . . . . 2 . . . 1 . . . . . . . . . . . 1 . . . Terminal Hacks 74 | . 1 2 3 . 24 . 3 . . . . . . . 3 1 . . . 2 . 17 . . . . 11 . . . 4 3 . Record 38 | . . . . . 23 . . . . . . . . . . . . . . . . 5 . . . . 10 . . . . . . Part Schematic 4 | . . . . . . . . . . . . . . . . . . . . . . 4 . . . . . . . . . . . Robot Analysis 4 | . . . . . . . . . . . . . . . . . . . . . . 4 . . . . . . . . . . . Prototype ID Bank 5 | . . . 1 . . . . . . . . . . . . . . . . . . 4 . . . . . . . . . . . Open Door 11 | . . . . . . . . . . . . . . . 3 1 . . . 2 . . . . . . 1 . . . 3 1 . Branch Access Points 1 | . . . . . . . . . . . . . . . . . . . . . . . . . . . . . . . 1 . . Terminal Index 2 | . . . . . . . 1 . . . . . . . . . . . . . . . . . . . . . . . . 1 . Locate Traps 1 | . 1 . . . . . . . . . . . . . . . . . . . . . . . . . . . . . . . . Maintenance Status 2 | . . 1 . . . . . . . . . . . . . . . . . . . . . . . . . . . . . 1 . Hauler Manifests 2 | . . . . . . . 2 . . . . . . . . . . . . . . . . . . . . . . . . . . Zone Layout 3 | . . 1 2 . . . . . . . . . . . . . . . . . . . . . . . . . . . . . . Proto ID Catalog 1 | . . . . . 1 . . . . . . . . . . . . . . . . . . . . . . . . . . . . Fabricator Hacks . | . . . . . . . . . . . . . . . . . . . . . . . . . . . . . . . . . . Repair Station Hacks 17 | . . . 6 . . . 2 . . . . . . 2 . . . . . . . . . 7 . . . . . . . . . Scan Component 9 | . . . 3 . . . 1 . . . . . . 1 . . . . . . . . . 4 . . . . . . . . . Repair 8 | . . . 3 . . . 1 . . . . . . 1 . . . . . . . . . 3 . . . . . . . . . Recycling Unit Hacks 3 | . 1 . . . . . 2 . . . . . . . . . . . . . . . . . . . . . . . . . . Retrieve Components 3 | . 1 . . . . . 2 . . . . . . . . . . . . . . . . . . . . . . . . . . Scanalyzer 12 | . . . 4 . . . 4 1 . . . . . . . . . . . . . . . . . . . . 3 . . . . Insert Component 6 | . . . 1 . . . 2 . . . . . . . . . . . . . . . . . . . . . 3 . . . . Analyze 1 | . . . . . . . 1 . . . . . . . . . . . . . . . . . . . . . . . . . . Retrieve Study 5 | . . . 3 . . . 1 1 . . . . . . . . . . . . . . . . . . . . . . . . . Garrison Access Hacks 4 | . . . . . . . 1 . . . . . . 1 . . . 1 . . . . . . . . . . . 1 . . . Seal Access 4 | . . . . . . . 1 . . . . . . 1 . . . 1 . . . . . . . . . . . 1 . . . Unauthorized Hacks 41 | . 9 1 12 . . . 6 1 . . . . . . 4 . . 7 . . . . . . . . . . . . . 1 . Terminals 37 | . 7 1 10 . . . 6 1 . . . . . . 4 . . 7 . . . . . . . . . . . . . 1 . Assimilate 2 | . . . 2 . . . . . . . . . . . . . . . . . . . . . . . . . . . . . . Botnet 8 | . 1 1 2 . . . 2 1 . . . . . . 1 . . . . . . . . . . . . . . . . . . Disrupt 3 | . . . . . . . . . . . . . . . 2 . . . . . . . . . . . . . . . . 1 . Operators 4 | . 1 . 1 . . . 1 . . . . . . . 1 . . . . . . . . . . . . . . . . . . Skim 13 | . 5 . 5 . . . 3 . . . . . . . . . . . . . . . . . . . . . . . . . . Sabotage 7 | . . . . . . . . . . . . . . . . . . 7 . . . . . . . . . . . . . . . Fabricators . | . . . . . . . . . . . . . . . . . . . . . . . . . . . . . . . . . . Repair Stations . | . . . . . . . . . . . . . . . . . . . . . . . . . . . . . . . . . . Recycling Units 4 | . 2 . 2 . . . . . . . . . . . . . . . . . . . . . . . . . . . . . . Reject 1 | . . . 1 . . . . . . . . . . . . . . . . . . . . . . . . . . . . . . Mask 1 | . . . 1 . . . . . . . . . . . . . . . . . . . . . . . . . . . . . . Tunnel 2 | . 2 . . . . . . . . . . . . . . . . . . . . . . . . . . . . . . . . Scanalyzers . | . . . . . . . . . . . . . . . . . . . . . . . . . . . . . . . . . . Garrison Access . | . . . . . . . . . . . . . . . . . . . . . . . . . . . . . . . . . . Data Cores Recovered 3 | . . . 1 . . . . . . . . . . . . . . . . . . . . . . . . . 1 1 . . . Used . | . . . . . . . . . . . . . . . . . . . . . . . . . . . . . . . . . . Hacking Detections 36 | . 4 1 10 . . . 7 2 . . . . . 2 2 . . 1 . . . . . 2 . . . . 3 . 1 1 . Full Trace Events . | . . . . . . . . . . . . . . . . . . . . . . . . . . . . . . . . . . Feedback Events . | . . . . . . . . . . . . . . . . . . . . . . . . . . . . . . . . . . Feedback Blocked . | . . . . . . . . . . . . . . . . . . . . . . . . . . . . . . . . . . Robot Schematics Acquired 4 | . . . . . . . . . . . 4 . . . . . . . . . . . . . . . . . . . . . . Robots Built . | . . . . . . . . . . . . . . . . . . . . . . . . . . . . . . . . . . Authchips . | . . . . . . . . . . . . . . . . . . . . . . . . . . . . . . . . . . Time . | . . . . . . . . . . . . . . . . . . . . . . . . . . . . . . . . . . Total Robot Build Rating . | . . . . . . . . . . . . . . . . . . . . . . . . . . . . . . . . . . Part Schematics Acquired 20 | . . . . . . . 1 . . . 15 . . . . . . . . . . 4 . . . . . . . . . . . Parts Built . | . . . . . . . . . . . . . . . . . . . . . . . . . . . . . . . . . . Authchips . | . . . . . . . . . . . . . . . . . . . . . . . . . . . . . . . . . . Time . | . . . . . . . . . . . . . . . . . . . . . . . . . . . . . . . . . . Total Part Build Rating . | . . . . . . . . . . . . . . . . . . . . . . . . . . . . . . . . . . Part Studies Acquired 5 | . . . 3 . . . 1 1 . . . . . . . . . . . . . . . . . . . . . . . . . Parts Repaired 7 | . . . 3 . . . 1 . . . . . . 1 . . . . . . . . . 2 . . . . . . . . . Time 494 | . . . 115 . . . 51 . . . . . . 30 . . . . . . . . . 298 . . . . . . . . . Parts Recycled . | . . . . . . . . . . . . . . . . . . . . . . . . . . . . . . . . . . Recycled Matter . | . . . . . . . . . . . . . . . . . . . . . . . . . . . . . . . . . . Retrieved Matter . | . . . . . . . . . . . . . . . . . . . . . . . . . . . . . . . . . . Retrieved Components 22 | . 10 . . . . . 12 . . . . . . . . . . . . . . . . . . . . . . . . . . Parts Scanalyzed 1 | . . . . . . . 1 . . . . . . . . . . . . . . . . . . . . . . . . . . Part Schematics Acquired 1 | . . . . . . . 1 . . . . . . . . . . . . . . . . . . . . . . . . . . Parts Damaged 1 | . . . . . . . 1 . . . . . . . . . . . . . . . . . . . . . . . . . . Bothacking | -11 -10 -10 -9 -9 -9 -8 -8 -7 -7 -7 -7 -7 -6 -6 -6 -6 -6 -6 -5 -5 -5 -5 -4 -4 -4 -4 -4 -3 -3 -2 -1 -1 -1 ------------ Run | Yrd Mat Min Mat Min Exi Min Mat Fac Low Low Zio Dee Pro Fac Ext Cet Arc Hub Fac Upp Upp Zhi Pro Fac Upp Upp War Pro Res Res Acc Com Ac0 Used RIF Installer . | . . . . . . . . . . . . . . . . . . . . . . . . . . . . . . . . . . Robots Hacked 1 | . . . . . . . . . . . . . . . . . . . . . . . . . . . . . . . . 1 . Non-combat . | . . . . . . . . . . . . . . . . . . . . . . . . . . . . . . . . . . Combat . | . . . . . . . . . . . . . . . . . . . . . . . . . . . . . . . . . . Robot Hacks Applied . | . . . . . . . . . . . . . . . . . . . . . . . . . . . . . . . . . . Manual 1 | . . . . . . . . . . . . . . . . . . . . . . . . . . . . . . . . 1 . Relay Couplers Released 2 | . . . . . . . . . . . . . . . . . . 1 . . . . . . . . . . . 1 . . . Machine Destruction 2 | . . . . . . . . . . . . . . . . . . 1 . . . . . . . . . . . 1 . . . Fabnet Peak Effective % . | . . . . . . . . . . . . . . . . . . . . . . . . . . . . . . . . . . Robots Rewired 12 | . . . . . . . . . . . . . . . 7 . . . . . . . . . . . 5 . . . . . . Allies Hacked 1 | . . . . . . . . . . . . . . . . . . . . . . . . . . . 1 . . . . . . Hacks Repelled . | . . . . . . . . . . . . . . . . . . . . . . . . . . . . . . . . . . Allies | -11 -10 -10 -9 -9 -9 -8 -8 -7 -7 -7 -7 -7 -6 -6 -6 -6 -6 -6 -5 -5 -5 -5 -4 -4 -4 -4 -4 -3 -3 -2 -1 -1 -1 -------- Run | Yrd Mat Min Mat Min Exi Min Mat Fac Low Low Zio Dee Pro Fac Ext Cet Arc Hub Fac Upp Upp Zhi Pro Fac Upp Upp War Pro Res Res Acc Com Ac0 Total Allies 24 | . . 3 . . . . . . . . . . . . 11 5 . . . . . . . . . . 5 . . . . . . Largest Group 9 | . . 3 3 . . . . . . . . . . . 7 9 9 5 . . . . . . . . 5 1 1 . . . . Highest-Rated Group 729 | . . 40 40 . . . . . . . . . . . 345 729 713 468 . . . . . . . . 286 63 63 . . . . Highest-Rated Ally 159 | . . 16 16 . . . . . . . . . . . 159 159 152 96 . . . . . . . . 68 63 63 . . . . Total Orders 732 | . . . . . . . . . . . 504 . . . . 3 4 20 . . . . . . . . 4 4 . . . 193 . STAY 219 | . . . . . . . . . . . 98 . . . . 2 1 12 . . . . . . . . 2 2 . . . 102 . ROAM 13 | . . . . . . . . . . . 10 . . . . . 1 . . . . . . . . . . . . . . 2 . FOLLOW 114 | . . . . . . . . . . . 62 . . . . 1 2 8 . . . . . . . . 2 2 . . . 37 . EXPLORE 2 | . . . . . . . . . . . 2 . . . . . . . . . . . . . . . . . . . . . . RETURN 384 | . . . . . . . . . . . 332 . . . . . . . . . . . . . . . . . . . . 52 . Ally Attacks 761 | . . . 32 . . . . . . . 277 . . . 39 49 22 47 . . . . . . . . 16 . . . . 279 . Total Damage 13025 | . . . 329 . . . . . . . 3976 . . . 677 1472 855 1564 . . . . . . . . 535 . . . . 3617 . Kills 106 | . . . 5 . . . . . . . 66 . . . 5 10 4 6 . . . . . . . . 8 . . . . 2 . Allies Corrupted 1 | . . . . . . . . . . . . . . . . . . 1 . . . . . . . . . . . . . . . Allies Melted 1 | . . . . . . . . . . . 1 . . . . . . . . . . . . . . . . . . . . . . Intel | -11 -10 -10 -9 -9 -9 -8 -8 -7 -7 -7 -7 -7 -6 -6 -6 -6 -6 -6 -5 -5 -5 -5 -4 -4 -4 -4 -4 -3 -3 -2 -1 -1 -1 ------- Run | Yrd Mat Min Mat Min Exi Min Mat Fac Low Low Zio Dee Pro Fac Ext Cet Arc Hub Fac Upp Upp Zhi Pro Fac Upp Upp War Pro Res Res Acc Com Ac0 Active Infowar (turns) 42256 | 126 1388 775 2602 829 696 . 220 . 1613 1321 8257 2535 1097 29 . . . . 852 640 76 . 834 1617 1214 536 1707 1710 1102 1725 883 7838 34 Optics 10349 | . . . . . . . . . . . 5240 . . . . . . . . . . . . . 1212 536 1707 1654 . . . . . Sensors 13985 | . . . . . . . . . 1613 1321 7768 2157 1097 29 . . . . . . . . . . . . . . . . . . . Terrain 1741 | . . . . . . . . . . . . . . . . . . . 852 640 76 . . . 3 . 170 . . . . . . Seismic 6637 | 126 1388 775 2602 829 696 . 220 . . . . . . . . . . . . . . . . . . . . . 1 . . . . Decoding 3138 | . . . . . . . . . . . . . . . . . . . . . . . 834 1617 687 . . . . . . . . Jamming 15225 | . . . . . . . . . . . 447 1654 . . . . . . . . . . . . . . . 1638 1101 1725 883 7777 . ECM 96 | . . . . . . . . . . . . . . . . . . . . . . . 1 . . . . . . . . 61 34 Robot Analysis Total 4 | . . . . . . . . . . . . . . . . . . . . . . 4 . . . . . . . . . . . Derelict Logs Recovered 13 | . . 1 . 1 . . . . 2 2 2 . 1 . . . . . . . 1 . . . 2 1 . . . . . . . Drone Launches 512 | . . . . . . . . . . . 370 . . . . . . . . . . . . . . . . . . . . 142 . Drone Recoveries 494 | . . . . . . . . . . . 362 . . . . . . . . . . . . . . . . . . . . 132 . Decoded 0b10 Intel 46 | . . . . . . . . . . . . . . . . . . . . . . . . 46 . . . . . . . . . Traps 6 | . . . . . . . . . . . . . . . . . . . . . . . . 6 . . . . . . . . . Emergency Access 7 | . . . . . . . . . . . . . . . . . . . . . . . . 7 . . . . . . . . . Items 23 | . . . . . . . . . . . . . . . . . . . . . . . . 23 . . . . . . . . . Machines 2 | . . . . . . . . . . . . . . . . . . . . . . . . 2 . . . . . . . . . Patrols 2 | . . . . . . . . . . . . . . . . . . . . . . . . 2 . . . . . . . . . Guards 6 | . . . . . . . . . . . . . . . . . . . . . . . . 6 . . . . . . . . . Exploration | -11 -10 -10 -9 -9 -9 -8 -8 -7 -7 -7 -7 -7 -6 -6 -6 -6 -6 -6 -5 -5 -5 -5 -4 -4 -4 -4 -4 -3 -3 -2 -1 -1 -1 ------------- Run | Yrd Mat Min Mat Min Exi Min Mat Fac Low Low Zio Dee Pro Fac Ext Cet Arc Hub Fac Upp Upp Zhi Pro Fac Upp Upp War Pro Res Res Acc Com Ac0 Turns Passed 83484 | 240 1591 880 3497 932 701 697 4253 1447 1702 1397 12610 4167 1097 1420 2016 533 717 3665 994 1774 603 526 1007 1617 1214 536 1707 1710 1449 1727 888 24067 103 Spaces Moved 43107 | 106 804 531 1621 520 433 388 1742 655 797 634 4003 1783 533 568 663 178 203 1498 516 583 328 208 464 728 546 290 754 788 699 1292 582 17474 195 Core 1 | 1 . . . . . . . . . . . . . . . . . . . . . . . . . . . . . . . . . Treads 17697 | . 732 531 1621 520 433 388 1742 655 797 634 4003 1783 533 568 663 178 203 507 516 177 . . . . . . . . . . . 513 . Legs 14685 | . . . . . . . . . . . . . . . . . . . . 406 328 208 464 728 546 290 754 788 699 1292 582 7600 . Wheels 1168 | 105 72 . . . . . . . . . . . . . . . . 991 . . . . . . . . . . . . . . . Hover 9556 | . . . . . . . . . . . . . . . . . . . . . . . . . . . . . . . . 9361 195 Flight . | . . . . . . . . . . . . . . . . . . . . . . . . . . . . . . . . . . Fastest Speed 26 | 50 80 160 160 160 160 160 160 200 200 208 155 206 206 206 206 226 240 138 160 160 175 175 172 175 177 177 174 174 172 115 114 26 26 Average Speed 149 | 79 152 160 160 160 160 160 195 200 203 208 204 210 206 222 233 232 240 174 160 171 175 175 174 175 190 177 174 182 173 121 114 102 29 Slowest Speed 410 | 80 160 160 160 160 160 160 200 200 208 208 272 245 206 246 246 243 240 290 160 320 175 175 175 177 239 177 177 233 176 182 115 410 160 Overloaded Moves 186 | . . . . . . . . . . . . . . . . . . . . . . . . . . . . . . . . 3 183 Propulsion Burnouts . | . . . . . . . . . . . . . . . . . . . . . . . . . . . . . . . . . . Robots Hopped . | . . . . . . . . . . . . . . . . . . . . . . . . . . . . . . . . . . Potential Cave-ins 22 | . . . . . . . . . . . . . . . 8 . . 11 . . . . . . . . . . . . 3 . . Cave-ins Triggered 1 | . . . . . . . . . . . . . . . 1 . . . . . . . . . . . . . . . . . . Teleports 1 | . . . . . . . . . . . . . . . . . . . . . . . . . . . . . . . . 1 . Exploration Rate (%) 61 | 2 97 94 76 98 70 84 68 17 78 81 89 86 67 12 61 67 78 82 16 68 51 60 65 13 79 56 91 87 34 40 19 88 17 Regions Visited 33 Branch Regions 23 Pre-discovered Areas 13 | . 2 . 1 . 1 . . . . 1 2 . . . . . . . . . . 3 . . 2 . 1 . . . . . . Known Exits Taken 17 | . . 1 1 . . 1 1 1 1 1 . . 1 1 1 1 . 1 1 . . . . 1 . . . 1 1 . 1 . . Unknown Exits Taken 16 | 1 1 . . 1 1 . . . . . 1 1 . . . . 1 . . 1 1 1 1 . 1 1 1 . . 1 . 1 . Scrap Searched 26 | . . 1 . 1 . 1 . . 3 2 4 . . . . . . . . 1 2 . 3 . 4 2 . 2 . . . . . Spaces Dug 295 | . 2 . 49 22 . . 39 3 . 1 15 6 . 2 10 . . 22 10 10 3 . . 24 3 . . . 28 7 22 17 . Terrain Destroyed 1247 | . 2 2 70 30 . . 63 7 22 3 65 66 . 2 78 . 5 377 17 53 8 . 3 73 23 10 5 10 47 21 55 130 . Melee 12 | . . . 9 . . . . . . . . . . . . . . . . . . . . . . . . . . . . 3 . Projectile 744 | . 2 . 42 1 . . 33 3 . 3 21 11 . 2 78 . 5 204 9 29 8 . 3 63 23 10 5 10 47 21 55 56 . AOE 489 | . . 2 19 29 . . 30 4 22 . 44 55 . . . . . 173 8 24 . . . 10 . . . . . . . 69 . Terrain Rammed . | . . . . . . . . . . . . . . . . . . . . . . . . . . . . . . . . . . Walls Destroyed . | . . . . . . . . . . . . . . . . . . . . . . . . . . . . . . . . . . Machines Disabled . | . . . . . . . . . . . . . . . . . . . . . . . . . . . . . . . . . . Actions | -11 -10 -10 -9 -9 -9 -8 -8 -7 -7 -7 -7 -7 -6 -6 -6 -6 -6 -6 -5 -5 -5 -5 -4 -4 -4 -4 -4 -3 -3 -2 -1 -1 -1 --------- Run | Yrd Mat Min Mat Min Exi Min Mat Fac Low Low Zio Dee Pro Fac Ext Cet Arc Hub Fac Upp Upp Zhi Pro Fac Upp Upp War Pro Res Res Acc Com Ac0 Total 56911 | 210 1066 544 2134 565 441 448 2287 758 859 690 6755 2105 533 669 975 290 370 2094 628 1312 345 358 654 917 684 300 1115 1021 869 1412 717 22551 235 Wait 7115 | 64 123 . 230 7 . 49 295 45 8 30 949 125 1 27 67 81 71 155 21 657 . 130 174 48 91 . 246 200 38 14 41 3121 7 Move 43073 | 105 803 530 1620 519 432 387 1741 654 796 633 4002 1782 532 567 661 177 202 1497 515 582 327 207 463 727 545 289 753 787 698 1291 581 17473 195 Hop . | . . . . . . . . . . . . . . . . . . . . . . . . . . . . . . . . . . Pick Up 531 | 8 29 . 13 1 2 . 30 4 9 1 47 35 . 5 5 7 7 29 12 10 2 2 . 12 4 . 12 . 14 9 5 215 2 Fast Attach 235 | 7 1 . 6 . . . 4 3 1 . 22 10 . 2 10 3 8 15 5 . . 2 4 2 5 . 11 1 19 23 . 71 . Attach 181 | . 2 . 4 1 . . 6 2 . . 7 9 . 1 2 . 5 24 6 4 . 2 . 1 1 . . 1 4 4 2 86 7 Detach 81 | . 1 . . . . . 2 . . . 4 . . . . . . 9 2 2 . 2 . 3 1 . 1 2 . . . 52 . Swap 409 | 1 20 6 52 11 4 1 36 7 19 4 25 27 . 12 14 4 8 32 9 6 3 . . 11 5 2 5 2 7 15 6 52 3 Drop 751 | . 27 . 26 . 3 1 36 6 11 1 71 41 . 4 10 13 8 35 14 17 6 6 9 11 13 3 29 8 26 33 3 273 7 Fire 3962 | 25 57 8 162 25 . 8 136 33 15 21 1625 76 . 51 144 5 61 296 44 34 7 . 4 92 19 6 23 13 63 22 78 795 14 Melee 113 | . . . 21 . . . . . . . . . . . . . . . . . . 7 . . . . . 7 . . . 78 . Ram 2 | . . . . . . . . . . . . . . . . . . 2 . . . . . . . . . . . . . . . Kick 153 | . . . . . . . . . . . . . . . . . . . . . . . . . . . . . . 1 1 151 . Crush 158 | . 3 . . 1 . 2 1 . . . . . . . . . . . . . . . . . . . . . . . . 151 . Escape Stasis 35 | . . . . . . . . 4 . . . . . . 7 . . . . . . . . 10 . . . . . . . 14 . Rewire 112 | . . . . . . . . . . . 3 . . . 55 . . . . . . . . . . . 35 . . . . 19 . Trap . | . . . . . . . . . . . . . . . . . . . . . . . . . . . . . . . . . . Miscellaneous . | . . . . . . . . . . . . . . . . . . . . . . . . . . . . . . . . . . Route ------- -11/Scrapyard -10/Materials (discovered 4 exits: *Mat x3 / *Min) -10/Mines (discovered 2 exits: *Mat x2) -9/Materials (discovered 5 exits: *Mat x3 / *Min x2) -9/Mines (discovered 3 exits: *Mat x2 / *Exi) -9/Exiles -8/Mines -8/Materials (discovered 2 exits: *Fac x2) -7/Factory (discovered 3 exits: *Fac / *Sto / *Low) -7/Lower Caves -7/Lower Caves (discovered 2 exits: Fac / *Zio) -7/Zion (discovered 2 exits: [*Dee] / [*Pro]) -7/Deep Caves -6/Proximity Caves -6/Factory (discovered 4 exits: Fac / *Low / *Ext x2) -6/Extension (discovered 2 exits: *Fac / *Cet) -6/Cetus (discovered 2 exits: *Fac / *Arc) -6/Archives (discovered 2 exits: *Hub x2) -6/Hub_04(d) -5/Factory -5/Upper Caves -5/Upper Caves -5/Zhirov -4/Proximity Caves -4/Factory -4/Upper Caves -4/Upper Caves (discovered 2 exits: *Res / *War) -4/Warlord -3/Proximity Caves -3/Research (discovered 2 exits: *Res / *Qua) -2/Research (discovered 3 exits: *Acc / *Tes x2) -1/Access -1/Command (discovered 3 exits: [*Sur x2] / [*Ac0]) -1/Access_0 History --------- Turn | Location | Event 10 | -11/Scrapyard | Discovered new exit (range 16) 241 | -11/Scrapyard | Entered Materials 242 | -10/Materials | Met a group of wandering Federalists 300 | -10/Materials | Discovered new exit (range 9) 337 | -10/Materials | Build established: Mutant 619 | -10/Materials | Learned 4 Recycling zone layouts 673 | -10/Materials | Discovered new exit (range 15) 690 | -10/Materials | Loaded intel: 23 non-interactive machine locations 751 | -10/Materials | Learned location of 1 exit from Storage 801 | -10/Materials | Learned Storage trap positions 839 | -10/Materials | Learned 4 Recycling zone layouts 868 | -10/Materials | Learned 4 Recycling zone layouts 905 | -10/Materials | Identified exit to Materials 950 | -10/Materials | Learned location of 1 exit from Recycling 1832 | -10/Materials | Entered Mines 1838 | -10/Mines | Met a Derelict bent on vengeance 2233 | -10/Mines | Discovered exit to Materials (range 15) 2310 | -10/Mines | Learned Materials terminal intel 2482 | -10/Mines | Assisted by bots powering up and referring to "LRC-V3" 2712 | -10/Mines | Entered Materials 2712 | -9/Materials | Accompanied by 3 allies 2712 | -9/Materials | Evolved 2 slots: Propulsion x1, Utility x1 2713 | -9/Materials | Loaded intel: 12 terminal locations 2834 | -9/Materials | Discovered new exit (range 16) 3022 | -9/Materials | Discovered new exit (range 16) 3335 | -9/Materials | Build established: Scavenger-Mutant 3593 | -9/Materials | Discovered new exit (range 16) 4279 | -9/Materials | Identified exit to Materials 4352 | -9/Materials | Learned location of Mines (-9) 4471 | -9/Materials | Identified exit to Mines 4513 | -9/Materials | Learned location of 1 exit from Storage 4547 | -9/Materials | Learned Storage stockpile data 5142 | -9/Materials | Repaired Med. Armor Plating 5242 | -9/Materials | Build established: Mutant 6037 | -9/Materials | Repaired Med. Armor Plating 6089 | -9/Materials | Repaired Hvy. Ion Engine 6209 | -9/Materials | Entered Mines 6224 | -9/Mines | Discovered exit to Materials (range 15) 6240 | -9/Mines | Learned location of 1 exit from Materials 6494 | -9/Mines | Discovered exit to Materials (range 13) 6684 | -9/Mines | A weapon hastily lodged in a ceiling crevice suddenly fell to the ground 6781 | -9/Mines | Deemed a non-threat by the Exiles lab entrance 6781 | -9/Mines | Discovered new exit (range 5) 7141 | -9/Mines | Entered Exiles 7181 | -9/Exiles | Met 8R-AWN 7209 | -9/Exiles | Met EX-HEX 7260 | -9/Exiles | Met EX-BIN 7282 | -9/Exiles | Met EX-DEC 7467 | -9/Exiles | Learned location of Zion (-7) 7626 | -9/Exiles | Aligned with FarCom system 7627 | -9/Exiles | Given EX-Vault access code 7666 | -9/Exiles | Opened EX-Vault 7681 | -9/Exiles | Found Army-in-a-Box 7717 | -9/Exiles | Warned to stay clear of 0b10 Research branches 7816 | -9/Exiles | Discovered new exit (range 14) 7842 | -9/Exiles | Left Exiles lab with Army-in-a-Box 7842 | -9/Exiles | Entered Mines 7916 | -8/Mines | Found a Scrap Suit stashed away for nefarious purposes 8473 | -8/Mines | Discovered exit to Materials (range 11) 8539 | -8/Mines | Entered Materials 8539 | -8/Materials | Evolved 2 slots: Utility x1, Weapon x1 8540 | -8/Materials | Identified exit to Factory 8792 | -8/Materials | Garrison activated, responded to threat 8836 | -8/Materials | Build established: Scavenger-Skirmisher 10182 | -8/Materials | Discovered exit to Factory (range 13) 11016 | -8/Materials | Repaired Hvy. Ion Engine? 11581 | -8/Materials | Build established: Scavenger-Tank 12792 | -8/Materials | Entered Factory 12792 | -7/Factory | Evolved 2 slots: Utility x2 12816 | -7/Factory | Build established: Tank 13164 | -7/Factory | Build established: Hacker-Tank 13291 | -7/Factory | Discovered new exit (range 5) 13379 | -7/Factory | Identified exit to Storage 14129 | -7/Factory | Discovered new exit (range 15) 14200 | -7/Factory | Discovered new exit (range 16) 14205 | -7/Factory | Identified exit to Factory 14235 | -7/Factory | Identified exit to Lower Caves 14239 | -7/Factory | Entered Lower Caves 14534 | -7/Lower Caves | Build established: Skirmisher 14953 | -7/Lower Caves | Entered a destroyed Warlord outpost 14972 | -7/Lower Caves | Learned location of 1 exit from Factory 15070 | -7/Lower Caves | Discovered new exit (range 12) 15092 | -7/Lower Caves | Learned 8 Factory zone layouts 15220 | -7/Lower Caves | Found DCF Scrap (14 items) 15447 | -7/Lower Caves | Found Imp. Powered Armor 15939 | -7/Lower Caves | Identified exit to Lower Caves 15941 | -7/Lower Caves | Entered another Lower Caves area 15950 | -7/Lower Caves | Attracted the attention of an 0b10 checkpoint 16620 | -7/Lower Caves | Encountered a Warlord checkpoint 17252 | -7/Lower Caves | Discovered new exit (range 7) 17290 | -7/Lower Caves | Identified exit to Zion 17338 | -7/Lower Caves | Entered Zion 17419 | -7/Zion | System corruption cleaned by Quarantine Array 17877 | -7/Zion | Learned location of Storage (-7) 17948 | -7/Zion | Learned Factory emergency access door positions 18562 | -7/Zion | Discovered new exit (range 10) 18740 | -7/Zion | Learned location of Warlord (-4) 19049 | -7/Zion | Visited the Megawrench Repair Shop 19049 | -7/Zion | Megawrench repaired 9 parts 19408 | -7/Zion | Rebuked by Imprinter 19470 | -7/Zion | Build established: Gunner 21080 | -7/Zion | Found CR-A16's Pointy Stick 21521 | -7/Zion | Attacked by Zionites 21527 | -7/Zion | Allies destroyed Imprinter 21541 | -7/Zion | Extracted access codes from Imprinter's data core 21775 | -7/Zion | Opened final containment barrier to the Deep Caves 21811 | -7/Zion | Lost 4 allies 21926 | -7/Zion | Discovered new exit (range 3) 21926 | -7/Zion | Saw the warning signs outside the Deep Caves entrance 22350 | -7/Zion | Build established: Scavenger-Tank 27551 | -7/Zion | Build established: Skirmisher 27884 | -7/Zion | Build established: Gunner 28357 | -7/Zion | Spotted 1A-ZKF(B) 28365 | -7/Zion | Allies destroyed 1A-ZKF(B) 28369 | -7/Zion | Allies destroyed T3-AH2(B) 29866 | -7/Zion | Build established: Scavenger-Tank 29948 | -7/Zion | Entered Deep Caves 30389 | -7/Deep Caves | Found Prototype Protection 30389 | -7/Deep Caves | Identified Zio. Weapon Casing 30865 | -7/Deep Caves | Z-Facility disabled 31020 | -7/Deep Caves | Discovered new exit (range 7) 31997 | -7/Deep Caves | Found Zio. Weapon Casing 32526 | -7/Deep Caves | Build established: Tank 33465 | -7/Deep Caves | Spotted Golem 33493 | -7/Deep Caves | Destroyed Golem 33568 | -7/Deep Caves | Spotted Golem 33607 | -7/Deep Caves | Destroyed Golem 33627 | -7/Deep Caves | Found GOLEM Unit 33637 | -7/Deep Caves | Lost 3 parts (3u) 34115 | -7/Deep Caves | Entered Proximity Caves 34455 | -6/Proximity Caves | Received a Behemoth hack from an annoying Tinkerer 34983 | -6/Proximity Caves | Learned 8 Factory zone layouts 35098 | -6/Proximity Caves | Discovered exit to Factory (range 5) 35212 | -6/Proximity Caves | Entered Factory 35212 | -6/Factory | Evolved 2 slots: Power x1, Utility x1 35213 | -6/Factory | Identified exit to Extension 35215 | -6/Factory | Identified exit to Factory 35284 | -6/Factory | Discovered new exit (range 5) 35876 | -6/Factory | Build established: Scavenger-Tank 35932 | -6/Factory | Identified exit to Lower Caves 36058 | -6/Factory | Repaired Enh. Autogun 36344 | -6/Factory | Build established: Tank 36632 | -6/Factory | Entered Extension 37206 | -6/Extension | Rescued a captive Derelict 37908 | -6/Extension | Crushed by falling debris 37997 | -6/Extension | Rescued a captive Derelict 37998 | -6/Extension | Rescued a captive Derelict 38011 | -6/Extension | Rescued A7 38574 | -6/Extension | Discovered exit to Factory (range 10) 38576 | -6/Extension | Discovered new exit (range 6) 38589 | -6/Extension | Identified exit to Cetus 38648 | -6/Extension | Entered Cetus 38648 | -6/Cetus | Accompanied by 7 allies (A7) 38653 | -6/Cetus | Acquired a Cetus Manufacturing Module code from A7 38668 | -6/Cetus | Build established: Commander-Tank 38682 | -6/Cetus | Spotted Cetus Guard 38682 | -6/Cetus | Spotted Cetus Guard 38684 | -6/Cetus | Spotted Cetus Guard 38684 | -6/Cetus | Spotted Cetus Guard 38689 | -6/Cetus | Allies destroyed Cetus Guard 38695 | -6/Cetus | Allies destroyed Cetus Guard 38703 | -6/Cetus | Allies destroyed Cetus Guard 38704 | -6/Cetus | Destroyed Cetus Guard 38734 | -6/Cetus | Lost 3 allies 38819 | -6/Cetus | Started Cetus Manufacturing Module 38836 | -6/Cetus | Escorted A7 to Cetus Mainframe 38844 | -6/Cetus | Manufactured an Enhanced Grunt 38862 | -6/Cetus | Discovered new exit (range 16) 38869 | -6/Cetus | Manufactured an Enhanced Grunt 38894 | -6/Cetus | Manufactured an Enhanced Grunt 38919 | -6/Cetus | Manufactured an Enhanced Grunt 38944 | -6/Cetus | Manufactured an Enhanced Grunt 38992 | -6/Cetus | Spotted Cetus Guard 38992 | -6/Cetus | Spotted Cetus Guard 38994 | -6/Cetus | Spotted Cetus Guard 38994 | -6/Cetus | Spotted Cetus Guard 39000 | -6/Cetus | Allies destroyed Cetus Guard 39007 | -6/Cetus | Allies destroyed Cetus Guard 39010 | -6/Cetus | Allies destroyed Cetus Guard 39012 | -6/Cetus | Allies destroyed Cetus Guard 39014 | -6/Cetus | Discovered exit to Factory (range 16) 39028 | -6/Cetus | Met Revision 17 39166 | -6/Cetus | Identified exit to Archives 39181 | -6/Cetus | Entered Archives 39181 | -6/Archives | Accompanied by 9 allies (A7) 39186 | -6/Archives | Received a hacking code to weaken MAIN.C 39355 | -6/Archives | Discovered new exit (range 15) 39506 | -6/Archives | Build established: Scavenger-Tank 39738 | -6/Archives | Discovered new exit (range 16) 39898 | -6/Archives | Entered Hub_04(d) 39898 | -6/Hub_04(d) | Accompanied by 5 allies 40085 | -6/Hub_04(d) | Build established: Hacker-Tank 40398 | -6/Hub_04(d) | Garrison activated, responded to threat 40505 | -6/Hub_04(d) | Discovered exit to Factory (range 10) 40989 | -6/Hub_04(d) | Network Hub disabled 41018 | -6/Hub_04(d) | Build established: Scavenger-Skirmisher 41037 | -6/Hub_04(d) | Spotted Lightning 41043 | -6/Hub_04(d) | Spotted Lightning 41044 | -6/Hub_04(d) | Spotted Lightning 41051 | -6/Hub_04(d) | System corruption reached 10% 41078 | -6/Hub_04(d) | Destroyed Lightning 41078 | -6/Hub_04(d) | Destroyed Lightning 41101 | -6/Hub_04(d) | Destroyed Lightning 41129 | -6/Hub_04(d) | Found Prototype Processor 41151 | -6/Hub_04(d) | Found Prototype Device 41151 | -6/Hub_04(d) | Identified Exp. EM Shield 41157 | -6/Hub_04(d) | Identified Exp. Targeting Computer 41289 | -6/Hub_04(d) | Network Hub disabled 41349 | -6/Hub_04(d) | Build established: Scavenger-Tank 41697 | -6/Hub_04(d) | Network Hub disabled 41990 | -6/Hub_04(d) | Spotted Lightning 41990 | -6/Hub_04(d) | Spotted Lightning 41990 | -6/Hub_04(d) | Spotted Lightning 42003 | -6/Hub_04(d) | Destroyed Lightning 42081 | -6/Hub_04(d) | Destroyed Lightning 42171 | -6/Hub_04(d) | Destroyed Lightning 42433 | -6/Hub_04(d) | Lost 3 parts (1n2u) 43071 | -6/Hub_04(d) | Network Hub disabled 43073 | -6/Hub_04(d) | Core integrity fell below 50% 43089 | -6/Hub_04(d) | Spotted Lightning 43091 | -6/Hub_04(d) | Spotted Lightning 43092 | -6/Hub_04(d) | Spotted Lightning 43160 | -6/Hub_04(d) | Destroyed Lightning 43184 | -6/Hub_04(d) | Destroyed Lightning 43215 | -6/Hub_04(d) | Destroyed Lightning 43249 | -6/Hub_04(d) | Found Prototype Energy Cannon 43252 | -6/Hub_04(d) | Found Exp. EM Shield 43398 | -6/Hub_04(d) | First assault squad dispatched 43455 | -6/Hub_04(d) | Found Prototype Device 43456 | -6/Hub_04(d) | Identified Exp. Phase Shifter 43563 | -6/Hub_04(d) | Entered Factory 43563 | -5/Factory | Evolved 2 slots: Propulsion x1, Utility x1 43598 | -5/Factory | Identified EMDS 44257 | -5/Factory | Unchained authorized (GL-D0S) 44297 | -5/Factory | Exiles provided nearest exit location to -5/Upper Caves 44557 | -5/Factory | Entered Upper Caves 44558 | -5/Upper Caves | Encountered a Warlord checkpoint 45508 | -5/Upper Caves | Build established: Scavenger-Golem 45927 | -5/Upper Caves | Attracted the attention of an 0b10 checkpoint 46037 | -5/Upper Caves | Spotted B-75 Beast 46078 | -5/Upper Caves | Destroyed B-75 Beast 46166 | -5/Upper Caves | Discovered new exit (range 12) 46331 | -5/Upper Caves | Entered another Upper Caves area 46516 | -5/Upper Caves | Learned Factory stockpile data 46725 | -5/Upper Caves | Discovered new exit (range 14) 46761 | -5/Upper Caves | Encountered a Warlord checkpoint 46934 | -5/Upper Caves | Entered Zhirov 46934 | -5/Zhirov | Discovered new exit (range 3) 46966 | -5/Zhirov | Met Zhirov 46999 | -5/Zhirov | Learned location of Testing (-2) 46999 | -5/Zhirov | Learned location of Command (-1) 46999 | -5/Zhirov | Learned location of Quarantine (-3) 47015 | -5/Zhirov | Zhirov requested help retrieving the SGEMP Prototype 47042 | -5/Zhirov | Found Alien Artifact 47042 | -5/Zhirov | Identified Integrated Dissipator 47042 | -5/Zhirov | Installed Integrated Dissipator, increased core heat dissipation (+20) 47278 | -5/Zhirov | Found Alien Artifact 47460 | -5/Zhirov | Entered Proximity Caves 47963 | -4/Proximity Caves | Discovered new exit (range 10) 48467 | -4/Proximity Caves | Entered Factory 48467 | -4/Factory | Evolved 2 slots: Utility x2 48570 | -4/Factory | Watched by a mysterious "MATRIX" hacker. 48624 | -4/Factory | Repaired Centrium Medium Armor Plating 48649 | -4/Factory | Unchained authorized (GL-D0S) 49337 | -4/Factory | Discovered new exit (range 11) 49699 | -4/Factory | Repaired Broken Enh. Biometal Leg? 49967 | -4/Factory | First assault squad dispatched 50082 | -4/Factory | Identified exit to Upper Caves 50084 | -4/Factory | Entered Upper Caves 50145 | -4/Upper Caves | Spotted B-86 Titan 50886 | -4/Upper Caves | Attracted the attention of an 0b10 checkpoint 50997 | -4/Upper Caves | Discovered new exit (range 20) 51298 | -4/Upper Caves | Entered another Upper Caves area 51379 | -4/Upper Caves | Discovered new exit (range 19) 51387 | -4/Upper Caves | Attracted the attention of an 0b10 checkpoint 51450 | -4/Upper Caves | Learned 4 Research zone layouts 51811 | -4/Upper Caves | Discovered new exit (range 10) 51834 | -4/Upper Caves | Entered Warlord 51895 | -4/Warlord | System corruption cleaned by Quarantine Array 52114 | -4/Warlord | Found Prototype Hackware 52122 | -4/Warlord | Found Prototype Reactor 52138 | -4/Warlord | Found Prototype Processor 52138 | -4/Warlord | Identified Exp. Target Analyzer 52420 | -4/Warlord | Found Prototype Special Weapon 52421 | -4/Warlord | Identified RU-N14's Throwing Claymores v3 52489 | -4/Warlord | Learned Research stockpile data 52491 | -4/Warlord | Learned 4 Access zone layouts 52491 | -4/Warlord | Learned 4 Quarantine zone layouts 52492 | -4/Warlord | Learned Quarantine security intel 52492 | -4/Warlord | Learned Factory garrison access intel 52492 | -4/Warlord | Learned Armory recycling unit intel 52492 | -4/Warlord | Learned Research scanalyzer intel 52693 | -4/Warlord | Met Warlord 52716 | -4/Warlord | Warlord's base attacked by MAIN.C 52790 | -4/Warlord | Found Prototype Energy Gun 52790 | -4/Warlord | Identified Vortex Shotgun 52799 | -4/Warlord | Found Prototype Energy Cannon 52799 | -4/Warlord | Identified Vortex Cannon 52807 | -4/Warlord | Found Vortex Shotgun 53066 | -4/Warlord | Warlord forces counterattacked 53151 | -4/Warlord | Lost 3 allies 53153 | -4/Warlord | Spotted Striker 53223 | -4/Warlord | Lost 9 allies 53391 | -4/Warlord | Warlord base infiltrated, sounded retreat 53436 | -4/Warlord | Spotted Executioner 53436 | -4/Warlord | Spotted Striker 53438 | -4/Warlord | Destroyed Executioner 53448 | -4/Warlord | P-70 Sage assimilated allied Beamer 7a 53484 | -4/Warlord | Destroyed Striker 53487 | -4/Warlord | Lost 3 allies 53502 | -4/Warlord | Discovered new exit (range 10) 53531 | -4/Warlord | Spotted Striker 53540 | -4/Warlord | Spotted Striker 53540 | -4/Warlord | Spotted Striker 53541 | -4/Warlord | Entered Proximity Caves 53541 | -3/Proximity Caves | Accompanied by 1 ally 53542 | -3/Proximity Caves | Identified exit to Research 54194 | -3/Proximity Caves | Spotted B-86 Titan 54279 | -3/Proximity Caves | Revealed the true nature of CR-A16's Pointy Stick 54286 | -3/Proximity Caves | Destroyed B-86 Titan 55251 | -3/Proximity Caves | Entered Research 55251 | -3/Research | Accompanied by 1 ally 55251 | -3/Research | Evolved 2 slots: Propulsion x2 55252 | -3/Research | Identified exit to Quarantine 55255 | -3/Research | Loaded intel: 6 scanalyzer locations 55451 | -3/Research | Revision forces began assault on 0b10 55511 | -3/Research | Met up with Revision 17++ 55727 | -3/Research | Build established: Scavenger-Gunner 55928 | -3/Research | Found Prototype Device 55938 | -3/Research | Identified Exp. Focal Shield 55951 | -3/Research | Research terminal network offline 56079 | -3/Research | Build established: Gunner 56414 | -3/Research | Spotted Striker 56523 | -3/Research | Lost 5 allies 56682 | -3/Research | Discovered new exit (range 7) 56695 | -3/Research | Spotted Striker 56698 | -3/Research | Identified exit to Research 56700 | -3/Research | Entered another Research area 56700 | -2/Research | Warlord forces began assault on 0b10 56700 | -2/Research | Evolved 2 slots: Power x1, Propulsion x1 56755 | -2/Research | Discovered new exit (range 16) 56810 | -2/Research | Research machine network offline 56844 | -2/Research | Discovered new exit (range 7) 56848 | -2/Research | Borebot progress halted 56890 | -2/Research | Identified exit to Testing 57071 | -2/Research | Met up with Warlord 57157 | -2/Research | Borebot progress halted 57189 | -2/Research | Borebot progress halted 57438 | -2/Research | Discovered exit to Testing (range 12) 57478 | -2/Research | Spotted Executioner 57605 | -2/Research | Spotted Striker 57613 | -2/Research | Spotted Striker 57719 | -2/Research | Spotted Striker 57723 | -2/Research | Spotted Striker 57741 | -2/Research | Destroyed Striker 57757 | -2/Research | Destroyed Striker 58116 | -2/Research | Warlord invited to help at Command 58116 | -2/Research | Given Cave Seal Controls access code 58172 | -2/Research | Spotted Executioner 58207 | -2/Research | Lost 5 allies 58358 | -2/Research | Found Prototype Processor 58358 | -2/Research | Identified Exp. Core Analyzer 58401 | -2/Research | Found Exp. Targeting Computer 58427 | -2/Research | Entered Access 58427 | -1/Access | Evolved 2 slots: Propulsion x1, Utility x1 58515 | -1/Access | Identified System Mapper 58521 | -1/Access | Found Quantum Capacitor 58579 | -1/Access | Unchained authorized (GL-D0S) 58816 | -1/Access | Build established: Hacker-Tank 59119 | -1/Access | Destroyed 7 combat bots 59138 | -1/Access | Identified exit to Command 59315 | -1/Access | Entered Command 59345 | -1/Command | Spotted B-99 Colossus 59361 | -1/Command | Destroyed B-99 Colossus 59565 | -1/Command | First assault squad dispatched 59575 | -1/Command | Build established: Hacker-Gunner 59811 | -1/Command | Spotted Combat Programmer 59826 | -1/Command | Spotted Combat Programmer 59834 | -1/Command | Destroyed Combat Programmer 59840 | -1/Command | Destroyed Combat Programmer 59849 | -1/Command | Spotted M Guard 59850 | -1/Command | Spotted M Guard 59878 | -1/Command | Identified Vortex Chain Reactor 59892 | -1/Command | Destroyed M Guard 59901 | -1/Command | All MAIN.C guards destroyed 59915 | -1/Command | Lost 8 parts (1p2n3u2w) 59957 | -1/Command | Spotted B-99 Colossus 59974 | -1/Command | Destroyed B-99 Colossus 59982 | -1/Command | Found Unknown Protection 59982 | -1/Command | Identified Hvy. Insulated Plating 59986 | -1/Command | Found Hvy. Reflective Plating 60178 | -1/Command | Met MAIN.C 60183 | -1/Command | Hacked MAIN.C using A7's code 60206 | -1/Command | Allies destroyed MAIN.C Shell 60207 | -1/Command | MAIN.C activated Command garrisons 60208 | -1/Command | 0b10 Conduit disabled 60241 | -1/Command | Allies destroyed MAIN.C 60257 | -1/Command | Identified Transdimensional Reconstructor 60257 | -1/Command | Discovered new exit (range 38) 60257 | -1/Command | Discovered new exit (range 101) 60257 | -1/Command | Extracted map data and part IDs from MAIN.C's data core 60269 | -1/Command | Lost 10 allies 60532 | -1/Command | Build established: Scavenger-Mutant 73003 | -1/Command | Found Quantum Capacitor 75057 | -1/Command | Found Multirail 75349 | -1/Command | Build established: Scavenger-Skirmisher 75652 | -1/Command | Build established: Scavenger-Mutant 76293 | -1/Command | Build established: Scavenger-Gunner 77865 | -1/Command | Found Exp. Targeting Computer 77870 | -1/Command | Found Exp. Core Analyzer 77874 | -1/Command | Found Exp. Core Analyzer 78075 | -1/Command | Build established: Scavenger-Mutant 78368 | -1/Command | Found Hvy. Insulated Plating 79303 | -1/Command | Found Corrupted Exp. ECM Suite 79426 | -1/Command | Found Smartbomb Launcher 79754 | -1/Command | Found Quantum Capacitor 83374 | -1/Command | Warped through subspace to slip node 83374 | -1/Command | Discovered new exit (range 5) 83382 | -1/Command | Entered Access_0 83383 | -1/Access_0 | Met Architect 83427 | -1/Access_0 | A6 warped into view 83468 | -1/Access_0 | Found Exp. Thermal Shield 83470 | -1/Access_0 | Core integrity fell below 50% 83479 | -1/Access_0 | Core integrity fell below 20% 83485 | -1/Access_0 | Destroyed by Enhanced Hunter with Hypervelocity Linear Accelerator Last Messages --------------- 83479_ Penetrated by Quantum Shear. 83479_ Quantum Shear penetrates Wall. 83479_ Penetrated by Quantum Shear. 83479_ Quantum Capacitor destroyed. 83480_ A6 follow-up attacks with Enh. Force Lance. 83481_ Penetrated by Quantum Shear. 83481_ Cmb. Antigrav System destroyed. 83481_ Critical hit (Burn: +37). 83483_ HV Slug penetrates Wall. 83483_ Penetrated by HV Slug. 83483_ Knocked back. 83485_ HV Slug penetrates Wall. 83485_ Knocked back. 83485_ HV Slug penetrates Wall. 83485_ HV Slug penetrates Enhanced Grunt. 83485_ Enhanced Grunt suffers critical hit (Destroy). 83485_ HV Slug penetrates Wall. 83485_ Penetrated by HV Slug. Map ----- +----------------------------------------------------+ | ?????????????????????????????????????????????????? | | ?????????????????????????????????????????????????? | | ?????????????????????????????????????????????????? | | ?????????????????????????????????????????????????? | | ?????????????????????????????????????????????????? | | ?????????????????????????????????????????????????? | | ?????????????????????????????????????????????????? | | ?????????????????????????????????????????????????? | | ?????????????????????????????????????????????????? | | ?????????????????????????????????????????????????? | | ?????????????????????????????????????????????????? | | ?????????????????????????????????????????????????? | | ??????????????????? ? ???????????????????????????? | | ???????????????????? ??????????????????????????? | | ???????????????????? ?????????????????????????? | | ????????????????????? ?#???????????????????????? | | ????????????? ??????? # ???????????????????????? | | ?????????????? ####### #??????????????????????? | | ??????????????? ??????????????????????? | | ???????????????? ## ??????????????????????? | | ?????????????????? ??????????????????????? | | ??????????????????? ??????????????????????? | | ????????????????????# #;;#??????????????????????? | | ????????????????????# ; ##?????????????????????? | | ???????????????????## % % #?????????????????????? | | ???????????????????# ;;@###????????????????????? | | ??????????????????## #????????????????????# | | ??????????????????# p % ##????????????????????# | | ????????????????#### ##?????????????????????# | | ???????????????##"#; ####??????????????????????# | | ??????????????##"# ;##?###????????????????????# | | ?????????????## ;# # #????????????????????# | | ?????????????#" #""""#??????????????????????# | | ?????????????## gp !!! #??????????????????????# | | ????????????##;#0 """ #??????????????????????# | | ????????????# "; g "" " ################???????# | | ????????????##;!%! "##" #????#### | | ????????????#" !hh"%## #????# | | ????????????##"!**" ## ############ #????## | | ?????????????# %#### #??????????# #?????## | | ????????????# % ""## #??????????# #??????## | | ???????????# " "" #??????????# #???????? | | ?????????#""#" # ##??????????# #???????? | | ????????""%" " # ###???????????# #???????? | | ???????? ""### ##????????????## #???????? | | ??????? ##????????????## ##????### | | ?????? "###???????????### ##?### # | | ???? "#### ##?????????????# ### # | | ?????""""" ?????# #??????????????# | | ????????????????# #??????????????## | +----------------------------------------------------+ Best States ------------- Heat Dissipation 119 Coolant Potential 100 Energy Generation 79 Energy Capacity 1950 Matter Stores 750 Matter Capacity 750 Sight Range 20 Robot Scan Range 19 Terrain Scan Range 20 Terrain Scan Density 10 ECM Strength 3 Jamming Range 14 Armor Coverage 1200 Resistance: KI 20 Resistance: TH 25 Resistance: EM 75 Utility Shielding 66 Weapon Shielding 100 Weapon Cycling 25 Phase Shifting 15 Evasion (%) 87 Targeting Accuracy 44 Launcher Accuracy 80 Target Analysis 12 Core Analysis 8 Recoil Reduction 4 Matter Filtering 50 Particle Charging 25 Offensive Hacking 34 Defensive Hacking 24 Item Schematics ----------------- Enh. Autogun | -8/Materials | Scanalyzed Gauss Cannon | -7/Zion | Archive Imp. System Shield | -7/Zion | Archive Shock Absorption System | -7/Zion | Archive Imp. Heavy Armor Plating | -7/Zion | Archive Remote Datajack | -7/Zion | Archive Focal Shield | -7/Zion | Archive Med. Reactive Plating | -7/Zion | Archive Hvy. Treads | -7/Zion | Archive Imp. Focal Shield | -7/Zion | Archive Gravmag System | -7/Zion | Archive Plasma Rifle | -7/Zion | Archive Hvy. Missile Launcher | -7/Zion | Archive Imp. Actuator Array | -7/Zion | Archive Thermal Shield | -7/Zion | Archive Flak Gun | -7/Zion | Archive Exp. Heat Sink | -5/Zhirov | Free Exp. Optical Array | -5/Zhirov | Free Imp. Arc Thrower | -5/Zhirov | Free Assault Drone Bay | -5/Zhirov | Free Robot Schematics ------------------ S-27 Virus | -7/Zion | Archive D-53 Grenadier | -7/Zion | Archive K-01 Serf | -7/Zion | Archive H-77 Assassin | -7/Zion | Archive Fabricated ------------ Nothing Repaired ---------- Med. Armor Plating | 39% | -9/Materials Med. Armor Plating | 35% | -9/Materials Hvy. Ion Engine | 26% | -9/Materials Hvy. Ion Engine | 39% | -8/Materials Enh. Autogun | 30% | -6/Factory Centrium Medium Armor Plating | 5% | -4/Factory Enh. Biometal Leg | 52% | -4/Factory | Broken Studied --------- Imp. Treads | -9/Materials | Hacked Particle Gun | -9/Materials | Hacked Lgt. Treads | -9/Materials | Hacked Arm. Treads | -8/Materials | Hacked Rocket Launcher | -7/Factory | Hacked Alien Tech Used ----------------- Integrated Dissipator Transdimensional Reconstructor Achievements -------------- 404 Monster My Bad Perfect Aim Challenges ------------ None Game ------ Seed VoltaicConceptDeconstructor Manual? 0 Play Time 13:08:57 Cumulative 407.7 hours Start 2026.03.08 @ 20:28:44 End 2026.03.15 @ 17:55:59 Sessions 32 Manual Loads 0 Difficulty Rogue Special Mode None Game No. 109 Rogue 103 Adventurer 0 Explorer 6 Win Type - Total 26 Types 13/1/5/1/1/0/2/1/1/1 Lore% 90 Gallery% 77 Achievement% 76 Wizard Run 0 Options --------- Layout 1 ASCII 0 Keyboard 0 Movement Mouse Keybinds 0 Fullscreen 2 Font 24/Smallcaps Map View 50x35 Zoom Use 0% Tactical HUD 1 Map Filters NONE Filters NONE Steam 1 RUN: 391d5111-22bf-4ec2-b57c-76bfe101a0ea